Workbook

Sheet PassiveSkillConfig
B1: Id | C1: Name | D1: Type | E1: ShortDesc | F1: Desc | G1: DescValue | H1: DescColor | I1: Icon | J1: NoUse | K1: NoUse
B2: int | C2: string | D2: int | E2: string | F2: string | G2: mut,string#string,1 | H2: mut,int#int,1 | I2: int | J2: boolean | K2: boolean
B3: 2 | C3: 3 | D3: 3 | E3: 3 | F3: 3 | G3: 3 | H3: 3 | I3: 3 | J3: 0 | K3: 0
B4: 技能id | C4: 技能名称 | D4: 技能类型 | E4: 短描述 | F4: 技能描述 | G4: 描述参数 | H4: 参数颜色 | I4: 技能图标 | J4: 校验 | K4: 校验
A5: 默认值 | B5: 0 | C5: ="" ->  | D5: 3 | F5: ="" -> 
A6: 正确性校对
A7: 校对值
B8: 1001 | C8: 破锋 | F8: 战斗中，增加10%攻击力。 | J8: =IF((LEN(F8)-LEN(SUBSTITUTE(F8,"%","")))=(LEN(G8)-LEN(SUBSTITUTE(G8,"#","")))+1,"",FALSE) ->  | K8: =IF((LEN(G8)-LEN(SUBSTITUTE(G8,"#","")))=(LEN(H8)-LEN(SUBSTITUTE(H8,"#",""))),"",FALSE) -> 
B9: 1002 | C9: 斩神 | F9: 战斗中，增加5%暴击率。 | J9: =IF((LEN(F9)-LEN(SUBSTITUTE(F9,"%","")))=(LEN(G9)-LEN(SUBSTITUTE(G9,"#","")))+1,"",FALSE) ->  | K9: =IF((LEN(G9)-LEN(SUBSTITUTE(G9,"#","")))=(LEN(H9)-LEN(SUBSTITUTE(H9,"#",""))),"",FALSE) -> 
B10: 1003 | C10: 斩神 | F10: 战斗中，增加5%暴击率。
B11: 1004 | C11: 破锋 | F11: 战斗中，增加10%攻击力。
B12: 1005 | C12: 圣体 | F12: 战斗中，增加10%最大生命值。
B13: 1006 | C13: 天御 | F13: 战斗中，增加10%伤害减免。
B14: 1007 | C14: 天伤 | F14: 战斗中，增加10%伤害。
B15: 1008 | C15: 破锋 | F15: 战斗中，增加10%攻击力。
B16: 1009 | C16: 斩神 | F16: 战斗中，增加5%暴击率。
B17: 1010 | C17: 迅雷 | F17: 战斗中，增加634点速度。 | J17: FALSE
B18: 1011 | C18: 舍生取义 | F18: 死亡时，立即回复己方全体40%攻击力的血量。
B19: 1012 | C19: 愈合 | F19: 进入战斗后，每1秒回复200生命 | J19: FALSE
B20: 1013 | C20: 天御 | F20: 战斗中，增加20%伤害减免。
B21: 1014 | C21: 精术 | F21: 战斗中，增加10%效果命中。
B22: 1015 | C22: 破空 | F22: 战斗中，增加30%暴击伤害。
B23: 1016 | C23: 迅雷 | F23: 战斗中，增加1056点速度。 | J23: FALSE
B24: 1017 | C24: 精术 | F24: 战斗中，增加10%效果命中。
B25: 1018 | C25: 回春 | F25: 战斗中，增加20%受到的治疗效果。
B26: 1019 | C26: 精术 | F26: 战斗中，增加10%效果命中。
B27: 1020 | C27: 天伤 | F27: 战斗中，增加20%伤害。
B28: 1021 | C28: 破锋 | F28: 战斗中，增加20%攻击力。
B29: 1022 | C29: 迅雷 | F29: 战斗中，增加1056点速度。 | J29: FALSE
B30: 1023 | C30: 愈合 | F30: 进入战斗后，每1秒回复500生命 | J30: FALSE
B31: 1024 | C31: 低语 | F31: 免疫沉默状态。 | J31: FALSE
B32: 1025 | C32: 明神 | F32: 免疫眩晕状态。 | J32: FALSE
B33: 10001 | C33: 针锋相对 | F33: 受到武卫伤害时，回复1000点生命。 | J33: FALSE
B34: 10002 | C34: 针锋相对 | F34: 受到武卫伤害时，回复<color=#529764FF>1200点</color>生命。 | J34: FALSE
B35: 10003 | C35: 针锋相对 | F35: 受到武卫伤害时，回复<color=#529764FF>1400点</color>生命。 | J35: FALSE
B36: 10004 | C36: 针锋相对 | F36: 受到武卫伤害时，回复<color=#529764FF>1600点</color>生命。 | J36: FALSE
B37: 10005 | C37: 针锋相对 | F37: 受到武卫伤害时，回复<color=#529764FF>1800点</color>生命。 | J37: FALSE
B38: 10006 | C38: 针锋相对 | F38: 受到武卫伤害时，回复<color=#529764FF>2000点</color>生命。 | J38: FALSE
B39: 10007 | C39: 针锋相对 | F39: 受到武卫伤害时，回复<color=#529764FF>2200点</color>生命。 | J39: FALSE
B40: 10008 | C40: 针锋相对 | F40: 受到武卫伤害时，回复<color=#529764FF>2500点</color>生命。 | J40: FALSE
B41: 10021 | C41: 针锋相对 | F41: 受到天罚伤害时，回复1000点生命。 | J41: FALSE
B42: 10022 | C42: 针锋相对 | F42: 受到天罚伤害时，回复<color=#529764FF>1200点</color>生命。 | J42: FALSE
B43: 10023 | C43: 针锋相对 | F43: 受到天罚伤害时，回复<color=#529764FF>1400点</color>生命。 | J43: FALSE
B44: 10024 | C44: 针锋相对 | F44: 受到天罚伤害时，回复<color=#529764FF>1600点</color>生命。 | J44: FALSE
B45: 10025 | C45: 针锋相对 | F45: 受到天罚伤害时，回复<color=#529764FF>1800点</color>生命。 | J45: FALSE
B46: 10026 | C46: 针锋相对 | F46: 受到天罚伤害时，回复<color=#529764FF>2000点</color>生命。 | J46: FALSE
B47: 10027 | C47: 针锋相对 | F47: 受到天罚伤害时，回复<color=#529764FF>2200点</color>生命。 | J47: FALSE
B48: 10028 | C48: 针锋相对 | F48: 受到天罚伤害时，回复<color=#529764FF>2500点</color>生命。 | J48: FALSE
B49: 10041 | C49: 针锋相对 | F49: 受到秘法伤害时，回复1000点生命。 | J49: FALSE
B50: 10042 | C50: 针锋相对 | F50: 受到秘法伤害时，回复<color=#529764FF>1200点</color>生命。 | J50: FALSE
B51: 10043 | C51: 针锋相对 | F51: 受到秘法伤害时，回复<color=#529764FF>1400点</color>生命。 | J51: FALSE
B52: 10044 | C52: 针锋相对 | F52: 受到秘法伤害时，回复<color=#529764FF>1600点</color>生命。 | J52: FALSE
B53: 10045 | C53: 针锋相对 | F53: 受到秘法伤害时，回复<color=#529764FF>1800点</color>生命。 | J53: FALSE
B54: 10046 | C54: 针锋相对 | F54: 受到秘法伤害时，回复<color=#529764FF>2000点</color>生命。 | J54: FALSE
B55: 10047 | C55: 针锋相对 | F55: 受到秘法伤害时，回复<color=#529764FF>2200点</color>生命。 | J55: FALSE
B56: 10048 | C56: 针锋相对 | F56: 受到秘法伤害时，回复<color=#529764FF>2500点</color>生命。 | J56: FALSE
B57: 10061 | C57: 针锋相对 | F57: 受到玄策伤害时，回复1000点生命。 | J57: FALSE
B58: 10062 | C58: 针锋相对 | F58: 受到玄策伤害时，回复<color=#529764FF>1200点</color>生命。 | J58: FALSE
B59: 10063 | C59: 针锋相对 | F59: 受到玄策伤害时，回复<color=#529764FF>1400点</color>生命。 | J59: FALSE
B60: 10064 | C60: 针锋相对 | F60: 受到玄策伤害时，回复<color=#529764FF>1600点</color>生命。 | J60: FALSE
B61: 10065 | C61: 针锋相对 | F61: 受到玄策伤害时，回复<color=#529764FF>1800点</color>生命。 | J61: FALSE
B62: 10066 | C62: 针锋相对 | F62: 受到玄策伤害时，回复<color=#529764FF>2000点</color>生命。 | J62: FALSE
B63: 10067 | C63: 针锋相对 | F63: 受到玄策伤害时，回复<color=#529764FF>2200点</color>生命。 | J63: FALSE
B64: 10068 | C64: 针锋相对 | F64: 受到玄策伤害时，回复<color=#529764FF>2500点</color>生命。 | J64: FALSE
B65: 10081 | C65: 针锋相对 | F65: 受到生花伤害时，回复1000点生命。 | J65: FALSE
B66: 10082 | C66: 针锋相对 | F66: 受到生花伤害时，回复<color=#529764FF>1200点</color>生命。 | J66: FALSE
B67: 10083 | C67: 针锋相对 | F67: 受到生花伤害时，回复<color=#529764FF>1400点</color>生命。 | J67: FALSE
B68: 10084 | C68: 针锋相对 | F68: 受到生花伤害时，回复<color=#529764FF>1600点</color>生命。 | J68: FALSE
B69: 10085 | C69: 针锋相对 | F69: 受到生花伤害时，回复<color=#529764FF>1800点</color>生命。 | J69: FALSE
B70: 10086 | C70: 针锋相对 | F70: 受到生花伤害时，回复<color=#529764FF>2000点</color>生命。 | J70: FALSE
B71: 10087 | C71: 针锋相对 | F71: 受到生花伤害时，回复<color=#529764FF>2200点</color>生命。 | J71: FALSE
B72: 10088 | C72: 针锋相对 | F72: 受到生花伤害时，回复<color=#529764FF>2500点</color>生命。 | J72: FALSE
B73: 10101 | C73: 愈合 | F73: 战斗开始后，每10秒回复3000点生命。 | J73: =IF((LEN(F73)-LEN(SUBSTITUTE(F73,"%","")))=(LEN(G73)-LEN(SUBSTITUTE(G73,"#","")))+1,"",FALSE) -> FALSE | K73: =IF((LEN(G73)-LEN(SUBSTITUTE(G73,"#","")))=(LEN(H73)-LEN(SUBSTITUTE(H73,"#",""))),"",FALSE) -> 
B74: 10102 | C74: 愈合 | F74: 战斗开始后，每10秒回复<color=#529764FF>3200点</color>生命。 | J74: FALSE
B75: 10103 | C75: 愈合 | F75: 战斗开始后，每10秒回复<color=#529764FF>3500点</color>生命。 | J75: FALSE
B76: 10104 | C76: 愈合 | F76: 战斗开始后，每<color=#529764FF>8秒</color>回复<color=#529764FF>3800点</color>生命。 | J76: FALSE
B77: 10105 | C77: 愈合 | F77: 战斗开始后，每8秒回复<color=#529764FF>4100点</color>生命。 | J77: FALSE
B78: 10106 | C78: 愈合 | F78: 战斗开始后，每<color=#529764FF>5秒</color>回复<color=#529764FF>4500点</color>生命。 | J78: FALSE
B79: 10107 | C79: 愈合 | F79: 战斗开始后，每5秒回复<color=#529764FF>5000点</color>生命。 | J79: FALSE
B80: 10121 | C80: 强击 | F80: 造成伤害时，附加800点真实伤害。 | J80: FALSE
B81: 10122 | C81: 强击 | F81: 造成伤害时，附加<color=#529764FF>900点</color>真实伤害。 | J81: FALSE
B82: 10123 | C82: 强击 | F82: 造成伤害时，附加<color=#529764FF>1000点</color>真实伤害。 | J82: FALSE
B83: 10124 | C83: 强击 | F83: 造成伤害时，附加<color=#529764FF>1100点</color>真实伤害。 | J83: FALSE
B84: 10125 | C84: 强击 | F84: 造成伤害时，附加<color=#529764FF>1200点</color>真实伤害。 | J84: FALSE
B85: 10126 | C85: 强击 | F85: 造成伤害时，附加<color=#529764FF>1350点</color>真实伤害。 | J85: FALSE
B86: 10127 | C86: 强击 | F86: 造成伤害时，附加<color=#529764FF>1500点</color>真实伤害。 | J86: FALSE
B87: 10141 | C87: 御攻 | F87: 受到物理伤害时，40%概率提升自身攻击10%的护甲，持续6秒。 | J87: FALSE
B88: 10142 | C88: 御攻 | F88: 受到物理伤害时，40%概率提升自身攻击<color=#529764FF>15%</color>的护甲，持续6秒。 | J88: FALSE
B89: 10143 | C89: 御攻 | F89: 受到物理伤害时，40%概率提升自身攻击<color=#529764FF>20%</color>的护甲，持续<color=#529764FF>8秒</color>。 | J89: FALSE
B90: 10144 | C90: 御攻 | F90: 受到物理伤害时，<color=#529764FF>50%</color>概率提升自身攻击<color=#529764FF>25%</color>的护甲，持续8秒。 | J90: FALSE
B91: 10145 | C91: 御攻 | F91: 受到物理伤害时，50%概率提升自身攻击<color=#529764FF>30%</color>的护甲，持续8秒。 | J91: FALSE
B92: 10146 | C92: 御攻 | F92: 受到物理伤害时，50%概率提升自身攻击<color=#529764FF>35%</color>的护甲，持续<color=#529764FF>10秒</color>。 | J92: FALSE
B93: 10147 | C93: 御攻 | F93: 受到物理伤害时，<color=#529764FF>60%</color>概率提升自身攻击<color=#529764FF>50%</color>的护甲，持续10秒。 | J93: FALSE
B94: 10161 | C94: 御神 | F94: 受到魔法伤害时，40%概率提升自身攻击10%的魔抗，持续6秒。 | J94: FALSE
B95: 10162 | C95: 御神 | F95: 受到魔法伤害时，40%概率提升自身攻击<color=#529764FF>15%</color>的魔抗，持续6秒。 | J95: FALSE
B96: 10163 | C96: 御神 | F96: 受到魔法伤害时，40%概率提升自身攻击<color=#529764FF>20%</color>的魔抗，持续<color=#529764FF>8秒</color>。 | J96: FALSE
B97: 10164 | C97: 御神 | F97: 受到魔法伤害时，<color=#529764FF>50%</color>概率提升自身攻击<color=#529764FF>25%</color>的魔抗，持续8秒。 | J97: FALSE
B98: 10165 | C98: 御神 | F98: 受到魔法伤害时，50%概率提升自身攻击<color=#529764FF>30%</color>的魔抗，持续8秒。 | J98: FALSE
B99: 10166 | C99: 御神 | F99: 受到魔法伤害时，50%概率提升自身攻击<color=#529764FF>35%</color>的魔抗，持续<color=#529764FF>10秒</color>。 | J99: FALSE
B100: 10167 | C100: 御神 | F100: 受到魔法伤害时，<color=#529764FF>60%</color>概率提升自身攻击<color=#529764FF>50%</color>的魔抗，持续10秒。 | J100: FALSE
B101: 10181 | C101: 强击 | F101: 死亡时，立即回复我方全体生命，回复量为自身生命的<color=#529764FF>20%</color>。
B102: 10182 | C102: 强击 | F102: 死亡时，立即回复我方全体生命，回复量为自身生命的<color=#529764FF>23%</color>。
B103: 10183 | C103: 强击 | F103: 死亡时，立即回复我方全体生命，回复量为自身生命的<color=#529764FF>26%</color>。
B104: 10184 | C104: 强击 | F104: 死亡时，立即回复我方全体生命，回复量为自身生命的<color=#529764FF>29%</color>。
B105: 10185 | C105: 强击 | F105: 死亡时，立即回复我方全体生命，回复量为自身生命的<color=#529764FF>32%</color>。
B106: 10186 | C106: 强击 | F106: 死亡时，立即回复我方全体生命，回复量为自身生命的<color=#529764FF>35%</color>。
B107: 10187 | C107: 强击 | F107: 死亡时，立即回复我方全体生命，回复量为自身生命的<color=#529764FF>40%</color>。
B108: 10201 | C108: 无畏 | F108: 目标血量高于60%时，伤害提高5%。 | J108: FALSE
B109: 10202 | C109: 无畏 | F109: 目标血量高于60%时，伤害提高<color=#529764FF>8%</color>。 | J109: FALSE
B110: 10203 | C110: 无畏 | F110: 目标血量高于<color=#529764FF>50%</color>时，伤害提高<color=#529764FF>12%</color>。 | J110: FALSE
B111: 10204 | C111: 无畏 | F111: 目标血量高于50%时，伤害提高<color=#529764FF>16%</color>。 | J111: FALSE
B112: 10205 | C112: 无畏 | F112: 目标血量高于50%时，伤害提高<color=#529764FF>20%</color>。 | J112: FALSE
B113: 10206 | C113: 无畏 | F113: 目标血量高于<color=#529764FF>35%</color>时，伤害提高20%。 | J113: FALSE
B114: 10221 | C114: 至圣 | F114: 自身增益效果不少于5个时，技能伤害提升5%。
B115: 10222 | C115: 至圣 | F115: 自身增益效果不少于5个时，技能伤害提升<color=#529764FF>10%</color>。
B116: 10223 | C116: 至圣 | F116: 自身增益效果不少于<color=#529764FF>4个</color>时，技能伤害提升<color=#529764FF>12%</color>。
B117: 10224 | C117: 至圣 | F117: 自身增益效果不少于4个时，技能伤害提升<color=#529764FF>15%</color>。
B118: 10225 | C118: 至圣 | F118: 自身增益效果不少于<color=#529764FF>3个</color>时，技能伤害提升<color=#529764FF>20%</color>。
B119: 10226 | C119: 至圣 | F119: 自身增益效果不少于<color=#529764FF>2个</color>时，技能伤害提升<color=#529764FF>25%</color>。
B120: 10241 | C120: 疾风 | F120: 使用技能时，5%概率提升2%速度，持续5秒。 | J120: FALSE
B121: 10242 | C121: 疾风 | F121: 使用技能时，5%概率提升<color=#529764FF>3%</color>速度，持续5秒。 | J121: FALSE
B122: 10243 | C122: 疾风 | F122: 使用技能时，<color=#529764FF>8%</color>概率提升<color=#529764FF>4%</color>速度，持续<color=#529764FF>7秒</color>。 | J122: FALSE
B123: 10244 | C123: 疾风 | F123: 使用技能时，8%概率提升<color=#529764FF>6%</color>速度，持续7秒。 | J123: FALSE
B124: 10245 | C124: 疾风 | F124: 使用技能时，<color=#529764FF>10%</color>概率提升<color=#529764FF>8%</color>速度，持续7秒。 | J124: FALSE
B125: 10246 | C125: 疾风 | F125: 使用技能时，20%概率提升8%速度，持续<color=#529764FF>9秒</color>。 | J125: FALSE
B126: 10261 | C126: 背水一战 | F126: 使用技能时，20%的概率提升自身护甲15%的攻击，持续5秒。 | J126: FALSE
B127: 10262 | C127: 背水一战 | F127: 使用技能时，20%的概率提升自身护甲<color=#529764FF>20%</color>的攻击，持续5秒。 | J127: FALSE
B128: 10263 | C128: 背水一战 | F128: 使用技能时，<color=#529764FF>15%</color>的概率提升自身护甲<color=#529764FF>25%</color>的攻击，持续<color=#529764FF>7秒</color>。 | J128: FALSE
B129: 10264 | C129: 背水一战 | F129: 使用技能时，30%的概率提升自身护甲<color=#529764FF>30%</color>的攻击，持续7秒。 | J129: FALSE
B130: 10265 | C130: 背水一战 | F130: 使用技能时，<color=#529764FF>20%</color>的概率提升自身护甲<color=#529764FF>35%</color>的攻击，持续7秒。 | J130: FALSE
B131: 10266 | C131: 背水一战 | F131: 使用技能时，20%的概率提升自身护甲<color=#529764FF>50%</color>的攻击，持续<color=#529764FF>9秒</color>。 | J131: FALSE
B132: 10281 | C132: 狂甲 | F132: 受到物理伤害时，40%概率提升自身护甲15%的攻击，持续6秒。 | J132: FALSE
B133: 10282 | C133: 狂甲 | F133: 受到物理伤害时，40%概率提升自身护甲<color=#529764FF>20%</color>的攻击，持续6秒。 | J133: FALSE
B134: 10283 | C134: 狂甲 | F134: 受到物理伤害时，40%概率提升自身护甲<color=#529764FF>25%</color>的攻击，持续<color=#529764FF>8秒</color>。 | J134: FALSE
B135: 10284 | C135: 狂甲 | F135: 受到物理伤害时，<color=#529764FF>50%</color>概率提升自身护甲<color=#529764FF>30%</color>的攻击，持续8秒。 | J135: FALSE
B136: 10285 | C136: 狂甲 | F136: 受到物理伤害时，50%概率提升自身护甲<color=#529764FF>35%</color>的攻击，持续<color=#529764FF>10秒</color>。 | J136: FALSE
B137: 10286 | C137: 狂甲 | F137: 受到物理伤害时，<color=#529764FF>60%</color>概率提升自身护甲<color=#529764FF>50%</color>的攻击，持续10秒。 | J137: =IF((LEN(F137)-LEN(SUBSTITUTE(F137,"%","")))=(LEN(G137)-LEN(SUBSTITUTE(G137,"#","")))+1,"",FALSE) -> FALSE | K137: =IF((LEN(G137)-LEN(SUBSTITUTE(G137,"#","")))=(LEN(H137)-LEN(SUBSTITUTE(H137,"#",""))),"",FALSE) -> 
B138: 10301 | C138: 魔攻 | F138: 受到魔法伤害时，40%概率提升自身魔抗15%的攻击，持续6秒。 | J138: FALSE
B139: 10302 | C139: 魔攻 | F139: 受到魔法伤害时，40%概率提升自身魔抗<color=#529764FF>20%</color>的攻击，持续6秒。 | J139: FALSE
B140: 10303 | C140: 魔攻 | F140: 受到魔法伤害时，40%概率提升自身魔抗<color=#529764FF>25%</color>的攻击，持续<color=#529764FF>8秒</color>。 | J140: FALSE
B141: 10304 | C141: 魔攻 | F141: 受到魔法伤害时，<color=#529764FF>50%</color>概率提升自身魔抗<color=#529764FF>30%</color>的攻击，持续8秒。 | J141: FALSE
B142: 10305 | C142: 魔攻 | F142: 受到魔法伤害时，50%概率提升自身魔抗<color=#529764FF>35%</color>的攻击，持续<color=#529764FF>10秒</color>。 | J142: FALSE
B143: 10306 | C143: 魔攻 | F143: 受到魔法伤害时，<color=#529764FF>60%</color>概率提升自身魔抗<color=#529764FF>50%</color>的攻击，持续10秒。 | J143: FALSE
B144: 210001 | C144: 强击 | F144: 造成伤害时，额外增加100点伤害。 | J144: FALSE
B145: 210002 | C145: 愈合 | F145: 进入战斗后，每1秒回复20生命。 | J145: FALSE
B146: 210003 | C146: 嗜血 | F146: 造成伤害时，将伤害的2%转化为自身生命。
B147: 310001 | C147: 破甲 | F147: 发动技能后，减少目标50点护甲，持续整场战斗，最多可减少400点。 | J147: FALSE
B148: 310002 | C148: 骄击 | F148: 造成的伤害暴击时，有10%的概率造成200%的暴击伤害。 | J148: FALSE
B149: 310003 | C149: 强击 | F149: 造成伤害时，额外增加200点伤害。 | J149: FALSE
B150: 310004 | C150: 愈合 | F150: 进入战斗后，每1秒回复35生命。 | J150: FALSE
B151: 400101 | C151: 愈合 | F151: 进入战斗后，每5秒回复2800生命。 | J151: FALSE
B152: 400201 | C152: 战甲 | F152: 发动技能时，13%的概率将护甲的30%视作额外攻击力。 | J152: FALSE
B153: 400202 | C153: 御甲 | F153: 受到物理伤害时，15%的概率将攻击的30%视作额外护甲。 | J153: FALSE
B154: 400203 | C154: 狂甲 | F154: 受到物理伤害后，40%的概率将护甲的30%视作额外攻击力，持续10秒。 | J154: FALSE
B155: 400204 | C155: 御魔 | F155: 受到魔法伤害时，15%的概率将攻击的30%视作额外魔抗。 | J155: FALSE
B156: 400205 | C156: 魔攻 | F156: 受到魔法伤害后，40%的概率将魔抗的30%视作额外攻击力，持续10秒。 | J156: FALSE
B157: 400301 | C157: 强攻 | F157: 发动技能后，20%的概率增加自身25%攻击力，持续10秒。 | J157: FALSE
B158: 400302 | C158: 束甲 | F158: 发动技能后，20%的概率增加自身25%护甲，持续10秒。 | J158: FALSE
B159: 400303 | C159: 强神 | F159: 发动技能后，20%的概率增加自身25%魔抗，持续10秒。 | J159: FALSE
B160: 400304 | C160: 震慑 | F160: 发动技能后，减少仇恨目标10%攻击力，持续10秒。
B161: 400305 | C161: 穿甲 | F161: 发动技能后，减少仇恨目标10%护甲，持续10秒。
B162: 400306 | C162: 化魔 | F162: 发动技能后，减少仇恨目标10%魔抗，持续10秒。
B163: 400401 | C163: 挪移 | F163: 受击后，40%对攻击者持续伤害，在4秒里总共造成40%攻击力的物理伤害。 | J163: FALSE
B164: 400402 | C164: 同归 | F164: 受击后，有13%的概率对敌方全体造成15%攻击力的魔法伤害。 | J164: FALSE
B165: 410101 | C165: 强击 | F165: 造成伤害时，额外增加1000点伤害。 | J165: FALSE
B166: 410401 | C166: 暗伤 | F166: 发动技能后，40%的概率对敌方随机1名施加25%攻击力的物理伤害。 | J166: FALSE
B167: 411001 | C167: 化神 | F167: 发动技能时，40%的概率将魔抗的20%视作额外攻击。 | J167: FALSE
B168: 411002 | C168: 湮灭 | F168: 造成的伤害暴击后，60%的概率施加10%攻击的持续魔法伤害，持续3秒。 | J168: FALSE
B169: 411003 | C169: 伏击 | F169: 发动技能后，20%的概率对敌方随机1名施加50%攻击的魔法伤害。 | J169: FALSE
B170: 411004 | C170: 破锋 | F170: 战斗中，增加10%攻击力。
B171: 411005 | C171: 天御 | F171: 战斗中，增加10%伤害减免。
B172: 411006 | C172: 斩神 | F172: 战斗中，增加5%暴击率。
B173: 411007 | C173: 精术 | F173: 战斗中，增加5%效果命中。
B174: 411201 | C174: 御攻 | F174: 受到物理伤害后，25%的概率将攻击的30%视作额外护甲，持续10秒。 | J174: FALSE
B175: 411202 | C175: 御神 | F175: 受到魔法伤害后，25%的概率将攻击的30%视作额外魔抗，持续10秒。 | J175: FALSE
B176: 411401 | C176: 向死而生 | F176: 受击后，20%的概率，回复自身5%最大生命值的血量。 | J176: FALSE
B177: 412001 | C177: 战意昂扬 | F177: 进入战斗10秒后，免疫控制效果，持续10秒。 | J177: FALSE
B178: 412002 | C178: 战甲 | F178: 发动技能时，40%的概率将护甲的20%视作额外攻击。 | J178: FALSE
B179: 412003 | C179: 无畏 | F179: 对血量高于60%的敌人伤害提高30%。 | J179: FALSE
B180: 412004 | C180: 破空 | F180: 战斗中，增加20%暴击伤害。
B181: 412005 | C181: 迅雷 | F181: 战斗中，增加634点速度。 | J181: FALSE
B182: 412006 | C182: 斩神 | F182: 战斗中，增加5%暴击率。
B183: 412007 | C183: 破锋 | F183: 战斗中，增加10%攻击力。
B184: 413001 | C184: 神甲 | F184: 发动技能后，增加自身护甲200点,持续8秒。 | J184: FALSE
B185: 413002 | C185: 反击 | F185: 受击后，有10%的概率对随机1人造成护甲的20%的真实伤害。 | J185: FALSE
B186: 413003 | C186: 向死而生 | F186: 受击后,10%的概率，回复自身最大生命值6%的血量。 | J186: FALSE
B187: 413004 | C187: 精术 | F187: 战斗中，增加5%效果命中。
B188: 413005 | C188: 回春 | F188: 战斗中，增加10%受到的治疗效果。
B189: 413006 | C189: 圣体 | F189: 战斗中，增加10%最大生命值。
B190: 413007 | C190: 天御 | F190: 战斗中，增加10%伤害减免。
B191: 414001 | C191: 混乱 | F191: 发动技能后，有20%的概率眩晕敌方其中1人，持续3秒。
B192: 414002 | C192: 命运 | F192: 控制效果命中后，50%的概率追加30%的魔法伤害。 | J192: FALSE
B193: 414003 | C193: 擅攻 | F193: 造成的持续伤害时间延长1秒。 | J193: FALSE
B194: 414004 | C194: 精术 | F194: 战斗中，增加5%效果命中。
B195: 414005 | C195: 迅雷 | F195: 战斗中，增加634点速度。 | J195: FALSE
B196: 414006 | C196: 天伤 | F196: 战斗中，增加10%伤害。
B197: 414007 | C197: 破锋 | F197: 战斗中，增加10%攻击力。
B198: 414301 | C198: 同心协力 | F198: 发动技能后，25%的概率为我方随机角色增加施法者25%攻击的攻击力，持续10秒。 | J198: FALSE
B199: 414302 | C199: 同甘共苦 | F199: 发动技能后，25%的概率为我方随机角色增加施法者25%攻击的护甲，持续10秒。 | J199: FALSE
B200: 414303 | C200: 同心明神 | F200: 发动技能后，25%的概率为我方随机角色增加施法者25%攻击的魔抗，持续10秒。 | J200: FALSE
... 1899 more rows

Sheet 特性修改
B1: 名称 | D1: 修改
A2: 500101 | B2: 愈合 | C2: 进入战斗后，每5秒回复8000生命。 | D2: 进入战斗后，每5秒回复5000生命。 | L2: =IF(ISBLANK(D2),C2,D2) -> 进入战斗后，每5秒回复5000生命。
A3: 500102 | B3: 针锋相对 | C3: 被武卫造成伤害时，回复2500生命。 | L3: =IF(ISBLANK(D3),C3,D3) -> 被武卫造成伤害时，回复2500生命。
A4: 500103 | B4: 针锋相对 | C4: 被天罚造成伤害时，回复2500生命。 | L4: 被天罚造成伤害时，回复2500生命。
A5: 500104 | B5: 针锋相对 | C5: 被秘法造成伤害时，回复2500生命。 | L5: 被秘法造成伤害时，回复2500生命。
A6: 500105 | B6: 针锋相对 | C6: 被玄策造成伤害时，回复2500生命。 | L6: 被玄策造成伤害时，回复2500生命。
A7: 500106 | B7: 针锋相对 | C7: 被生花造成伤害时，回复2500生命。 | L7: 被生花造成伤害时，回复2500生命。
A8: 500201 | B8: 战甲 | C8: 发动技能时，60%的概率将护甲的50%视作额外攻击力。 | D8: 发动技能时，20%的概率将护甲的50%视作额外攻击力。 | L8: 发动技能时，20%的概率将护甲的50%视作额外攻击力。
A9: 500202 | B9: 御甲 | C9: 受到物理伤害时，60%的概率将攻击的50%视作额外护甲。 | D9: 受到物理伤害时，20%的概率将攻击的50%视作额外护甲。 | L9: 受到物理伤害时，20%的概率将攻击的50%视作额外护甲。
A10: 500203 | B10: 狂甲 | C10: 受到物理伤害后，60%的概率将护甲的50%视作额外攻击力，持续10秒。 | L10: 受到物理伤害后，60%的概率将护甲的50%视作额外攻击力，持续10秒。
A11: 500204 | B11: 御魔 | C11: 受到魔法伤害时，60%的概率将攻击的50%视作额外魔抗。 | D11: 受到魔法伤害时，20%的概率将攻击的50%视作额外魔抗。 | L11: 受到魔法伤害时，20%的概率将攻击的50%视作额外魔抗。
A12: 500205 | B12: 魔攻 | C12: 受到魔法伤害后，60%的概率将魔抗的50%视作额外攻击力，持续10秒。 | L12: 受到魔法伤害后，60%的概率将魔抗的50%视作额外攻击力，持续10秒。
A13: 500206 | B13: 背水一战 | C13: 发动技能后，60%的概率将护甲的50%视作额外攻击力，持续10秒。 | D13: 发动技能后，10%的概率将护甲的50%视作额外攻击力，持续10秒。 | L13: 发动技能后，10%的概率将护甲的50%视作额外攻击力，持续10秒。
A14: 500207 | B14: 破釜沉舟 | C14: 发动技能后，60%的概率将魔抗的50%视作额外攻击力，持续10秒。 | D14: 发动技能后，10%的概率将魔抗的50%视作额外攻击力，持续10秒。 | L14: 发动技能后，10%的概率将魔抗的50%视作额外攻击力，持续10秒。
A15: 500301 | B15: 乘胜追击 | C15: 持续伤害效果命中后，增加自身10%攻击力，持续20秒。 | D15: 持续伤害效果命中后，增加自身10%攻击力，持续8秒。 | L15: 持续伤害效果命中后，增加自身10%攻击力，持续8秒。
A16: 500302 | B16: 骤雨 | C16: 进入战斗20秒后，增加自身50%攻击力，持续30秒。 | L16: 进入战斗20秒后，增加自身50%攻击力，持续30秒。
A17: 500303 | B17: 愈战愈勇 | C17: 每过8秒，增加自身10%攻击力和5%暴击，最高叠加3层. | D17: 每过10秒，增加自身10%攻击力和5%暴击，最高叠加5层. | L17: 每过10秒，增加自身10%攻击力和5%暴击，最高叠加5层.
A18: 500401 | B18: 挪移 | C18: 受击后，60%对攻击者持续伤害，在6秒里总共造成90%攻击力的物理伤害。 | L18: 受击后，60%对攻击者持续伤害，在6秒里总共造成90%攻击力的物理伤害。
A19: 500402 | B19: 不悔 | C19: 死亡时，回复己方全体30%最大生命值的血量。 | D19: 死亡时，回复己方全体200%最大生命值的血量。 | L19: 死亡时，回复己方全体200%最大生命值的血量。
A20: 500501 | B20: 擅攻 | C20: 造成的持续伤害时间延长2秒。 | L20: 造成的持续伤害时间延长2秒。
A21: 500502 | B21: 宿命 | C21: 控制效果命中后，60%的概率施加30%攻击力的物理伤害。 | L21: 控制效果命中后，60%的概率施加30%攻击力的物理伤害。
A22: 500503 | B22: 宿命 | C22: 控制效果命中后，40%对全体造成20%攻击力的物理伤害。 | L22: 控制效果命中后，40%对全体造成20%攻击力的物理伤害。
A23: 500504 | B23: 破锋 | C23: 战斗中，增加15%攻击力。 | L23: 战斗中，增加15%攻击力。
A24: 500505 | B24: 神甲 | C24: 战斗中，增加15%护甲。 | L24: 战斗中，增加15%护甲。
A25: 500506 | B25: 御魔 | C25: 战斗中，增加15%魔抗。 | D25: 战斗中，增加20%魔抗。 | L25: 战斗中，增加20%魔抗。
A26: 500507 | B26: 圣体 | C26: 战斗中，增加20%最大生命。 | L26: 战斗中，增加20%最大生命。
A27: 500601 | B27: 死战 | C27: 血量低于80%时触发控制免疫，持续8秒。每场战斗只能触发1次。 | L27: 血量低于80%时触发控制免疫，持续8秒。每场战斗只能触发1次。
A28: 500602 | B28: 战意昂扬 | C28: 进入战斗10秒后，免疫控制效果，持续10秒。 | L28: 进入战斗10秒后，免疫控制效果，持续10秒。
A29: 500603 | B29: 战意昂扬 | C29: 进入战斗20秒后，免疫控制效果，持续20秒。 | D29: 进入战斗20秒后，免疫控制效果，持续15秒。 | L29: 进入战斗20秒后，免疫控制效果，持续15秒。
A30: 500604 | B30: 低语 | C30: 免疫沉默状态。 | L30: 免疫沉默状态。
A31: 500605 | B31: 轻蔑 | C31: 免疫嘲讽。 | L31: 免疫嘲讽。
A32: 500606 | B32: 强愈 | C32: 免疫禁疗。 | L32: 免疫禁疗。
A33: 500607 | B33: 洞察 | C33: 免疫致盲。 | L33: 免疫致盲。
A34: 500608 | B34: 化炎 | C34: 免疫燃烧状态。 | L34: 免疫燃烧状态。
A35: 500609 | B35: 化毒 | C35: 免疫中毒状态。 | L35: 免疫中毒状态。
A36: 500610 | B36: 固元 | C36: 免疫流血状态。 | L36: 免疫流血状态。
A37: 500701 | B37: 祈祷 | C37: 使用回复技能时，60%的概率提高恢复效果30%。 | L37: 使用回复技能时，60%的概率提高恢复效果30%。
A38: 500702 | B38: 神助 | C38: 受击时，有30%的概率抵消50%自身攻击力的伤害。 | L38: 受击时，有30%的概率抵消50%自身攻击力的伤害。
A39: 500703 | B39: 至圣 | C39: 自身增益效果超过2个时，技能伤害提升10%。 | L39: 自身增益效果超过2个时，技能伤害提升10%。
A40: 500704 | B40: 至圣 | C40: 自身增益效果超过4个时，技能伤害提升25%。 | L40: 自身增益效果超过4个时，技能伤害提升25%。
A41: 500705 | B41: 至圣 | C41: 自身增益效果超过6个时，技能伤害提升40%。 | L41: 自身增益效果超过6个时，技能伤害提升40%。
A42: 500706 | B42: 无畏 | C42: 对血量高于40%的敌人伤害提高20%。 | L42: 对血量高于40%的敌人伤害提高20%。
A43: 500707 | B43: 无畏 | C43: 对血量高于70%的敌人伤害提高35%。 | L43: 对血量高于70%的敌人伤害提高35%。
A44: 500708 | B44: 追击 | C44: 对血量低于80%的敌人伤害提高15%。 | L44: 对血量低于80%的敌人伤害提高15%。
A45: 500709 | B45: 追击 | C45: 对血量低于35%的敌人伤害提高40%。 | L45: 对血量低于35%的敌人伤害提高40%。
A46: 500710 | B46: 战机 | C46: 进入战斗10秒后，造成的伤害提升25%，持续20秒 | L46: 进入战斗10秒后，造成的伤害提升25%，持续20秒
A47: 500711 | B47: 战机 | C47: 进入战斗20秒后，造成的伤害提升25%，持续40秒 | L47: 进入战斗20秒后，造成的伤害提升25%，持续40秒
A48: 500712 | B48: 战机 | C48: 进入战斗15秒后，造成的伤害提升40%，持续15秒 | L48: 进入战斗15秒后，造成的伤害提升40%，持续15秒
A49: 502501 | B49: 风神 | C49: 战斗中，增加15%速度。 | L49: 战斗中，增加15%速度。
A50: 503301 | B50: 极武 | C50: 发动技能后，增加自身15%暴击率，持续8秒 | D50: 发动技能后，10%概率增加自身5%速度，持续6秒。 | L50: 发动技能后，10%概率增加自身5%速度，持续6秒。
A51: 503302 | B51: 极伤 | C51: 发动技能后，增加自身30%暴击伤害，持续8秒 | L51: 发动技能后，增加自身30%暴击伤害，持续8秒
A52: 503303 | B52: 一心 | C52: 发动技能后，增加己方全体10%暴击率，持续8秒 | L52: 发动技能后，增加己方全体10%暴击率，持续8秒
A53: 503304 | B53: 同力 | C53: 发动技能后，增加己方全体20%暴击伤害，持续8秒 | L53: 发动技能后，增加己方全体20%暴击伤害，持续8秒
A54: 503305 | B54: 化敌 | C54: 发动技能后，降低敌方全体10%暴击率，持续8秒 | L54: 发动技能后，降低敌方全体10%暴击率，持续8秒
A55: 503306 | B55: 虚弱 | C55: 发动技能后，降低敌方全体20%暴击伤害，持续8秒 | D55: 发动技能后，降低敌方全体50%暴击伤害，持续8秒 | L55: 发动技能后，降低敌方全体50%暴击伤害，持续8秒
A56: 503501 | B56: 复苏 | C56: 受到治疗效果提高30%。 | D56: 受到治疗效果提高30%。 | L56: 受到治疗效果提高30%。
A57: 503502 | B57: 斩神 | C57: 战斗中，增加20%暴击率。 | D57: 战斗中，增加10%暴击率。 | L57: 战斗中，增加10%暴击率。
A58: 503503 | B58: 破空 | C58: 战斗中，增加40%暴击伤害。 | L58: 战斗中，增加40%暴击伤害。
A59: 503504 | B59: 神愈 | C59: 战斗中，增加15%治疗量。 | D59: 战斗中，增加30%治疗量。 | L59: 战斗中，增加30%治疗量。
A60: 503505 | B60: 圣疗 | C60: 战斗中，增加15%受治疗量。 | D60: 战斗中，增加30%受治疗量。 | L60: 战斗中，增加30%受治疗量。
A61: 503601 | B61: 死战 | C61: 血量低于40%时，触发控制免疫，持续20秒。每场战斗只能触发1次。 | L61: 血量低于40%时，触发控制免疫，持续20秒。每场战斗只能触发1次。
A62: 504501 | B62: 天伤 | C62: 战斗中，增加20%伤害。 | L62: 战斗中，增加20%伤害。
A63: 504502 | B63: 天御 | C63: 战斗中，增加20%伤害减免。 | L63: 战斗中，增加20%伤害减免。
A64: 504503 | B64: 混乱 | C64: 发动技能后，有20%的概率眩晕敌方其中1人，持续8秒。 | L64: 发动技能后，有20%的概率眩晕敌方其中1人，持续8秒。
A65: 504601 | B65: 明神 | C65: 免疫眩晕状态。 | L65: 免疫眩晕状态。
A66: 510101 | B66: 强击 | C66: 造成伤害时，额外增加700点伤害。 | D66: 造成伤害时，额外增加1500点伤害。 | L66: 造成伤害时，额外增加1500点伤害。
A67: 510301 | B67: 强攻 | C67: 发动技能后，60%的概率增加自身40%攻击力，持续10秒。 | D67: 发动技能后，35%的概率增加自身40%攻击力，持续10秒。 | L67: =IF(ISBLANK(D67),C67,D67) -> 发动技能后，35%的概率增加自身40%攻击力，持续10秒。
A68: 510302 | B68: 束甲 | C68: 发动技能后，60%的概率增加自身40%护甲，持续10秒。 | D68: 发动技能后，40%的概率增加自身40%护甲，持续10秒。 | L68: 发动技能后，40%的概率增加自身40%护甲，持续10秒。
A69: 510303 | B69: 强神 | C69: 发动技能后，60%的概率增加自身40%魔抗，持续10秒。 | D69: 发动技能后，35%的概率增加自身40%魔抗，持续10秒。 | L69: 发动技能后，35%的概率增加自身40%魔抗，持续10秒。
A70: 510304 | B70: 震慑 | C70: 发动技能后，降低仇恨目标15%攻击力,持续12秒。 | L70: 发动技能后，降低仇恨目标15%攻击力,持续12秒。
A71: 510305 | B71: 穿甲 | C71: 发动技能后，降低仇恨目标15%护甲,持续12秒。 | L71: 发动技能后，降低仇恨目标15%护甲,持续12秒。
A72: 510306 | B72: 化魔 | C72: 发动技能后，降低仇恨目标15%魔抗,持续12秒。 | L72: 发动技能后，降低仇恨目标15%魔抗,持续12秒。
A73: 510307 | B73: 封脉 | C73: 发动技能后，60%的概率使仇恨目标受到治疗效果降低30%，持续10秒。 | L73: 发动技能后，60%的概率使仇恨目标受到治疗效果降低30%，持续10秒。
A74: 510308 | B74: 武神 | C74: 发动技能后，增加自身25%攻击力，持续8秒。 | L74: 发动技能后，增加自身25%攻击力，持续8秒。
A75: 510309 | B75: 神御 | C75: 发动技能后，增加自身25%护甲，持续8秒。 | L75: 发动技能后，增加自身25%护甲，持续8秒。
A76: 510310 | B76: 灵台 | C76: 发动技能后，增加自身25%魔抗，持续8秒。 | L76: 发动技能后，增加自身25%魔抗，持续8秒。
A77: 510311 | B77: 千钧 | C77: 发动技能后，增加己方全体10%攻击力,持续8秒。 | L77: 发动技能后，增加己方全体10%攻击力,持续8秒。
A78: 510312 | B78: 天魔附体 | C78: 发动技能后，增加己方全体10%护甲,持续8秒。 | L78: 发动技能后，增加己方全体10%护甲,持续8秒。
A79: 510313 | B79: 万法不侵 | C79: 发动技能后，增加己方全体10%魔抗,持续8秒。 | L79: 发动技能后，增加己方全体10%魔抗,持续8秒。
A80: 510314 | B80: 折锋 | C80: 发动技能后，降低敌方全体10%攻击力,持续8秒。 | L80: 发动技能后，降低敌方全体10%攻击力,持续8秒。
A81: 510315 | B81: 折锋 | C81: 发动技能后，降低敌方全体10%攻击力,持续8秒。 | D81: 发动技能后，降低敌方全体10%护甲,持续8秒。 | L81: 发动技能后，降低敌方全体10%护甲,持续8秒。
A82: 510316 | B82: 折锋 | C82: 发动技能后，降低敌方全体10%攻击力,持续8秒。 | D82: 发动技能后，降低敌方全体10%魔抗,持续8秒。 | L82: 发动技能后，降低敌方全体10%魔抗,持续8秒。
A83: 510401 | B83: 暗伤 | C83: 发动技能后，60%的概率对敌方随机1名施加40%攻击的物理伤害。 | L83: 发动技能后，60%的概率对敌方随机1名施加40%攻击的物理伤害。
A84: 510402 | B84: 伏击 | C84: 发动技能后，60%的概率对敌方随机1名施加40%攻击的魔法伤害。 | L84: 发动技能后，60%的概率对敌方随机1名施加40%攻击的魔法伤害。
A85: 510403 | B85: 湮灭 | C85: 造成的伤害暴击后，60%的概率附加持续伤害，在5秒里造成总共100%攻击力的物理伤害。 | L85: 造成的伤害暴击后，60%的概率附加持续伤害，在5秒里造成总共100%攻击力的物理伤害。
A86: 510404 | B86: 狂战 | C86: 造成的伤害暴击后，60%的概率回复自身30%攻击力的血量。 | L86: 造成的伤害暴击后，60%的概率回复自身30%攻击力的血量。
A87: 510405 | B87: 骄击 | C87: 造成的伤害暴击时，有40%的概率造成300%的暴击伤害。 | L87: 造成的伤害暴击时，有40%的概率造成300%的暴击伤害。
A88: 510601 | B88: 饮血 | C88: 造成伤害时，将伤害的15%转化为自身生命 | D88: 造成伤害时，将伤害的50%转化为自身生命 | L88: 造成伤害时，将伤害的50%转化为自身生命
A89: 511201 | B89: 御攻 | C89: 受到物理伤害后，60%的概率将攻击的50%视作额外护甲，持续10秒。 | L89: 受到物理伤害后，60%的概率将攻击的50%视作额外护甲，持续10秒。
A90: 511202 | B90: 御神 | C90: 受到魔法伤害后，60%的概率将攻击的50%视作额外魔抗，持续10秒。 | D90: 受到魔法伤害后，40%的概率将攻击的50%视作额外魔抗，持续10秒。 | L90: 受到魔法伤害后，40%的概率将攻击的50%视作额外魔抗，持续10秒。
A91: 511203 | B91: 魔甲 | C91: 发动技能时，60%的概率将攻击的40%视作额外护甲。 | D91: 发动技能时，15%的概率将攻击的40%视作额外护甲。 | L91: 发动技能时，15%的概率将攻击的40%视作额外护甲。
A92: 511204 | B92: 魔魂 | C92: 发动技能时，60%的概率将攻击的40%视作额外魔抗。 | D92: 发动技能时，15%的概率将攻击的40%视作额外魔抗。 | L92: 发动技能时，15%的概率将攻击的40%视作额外魔抗。
A93: 511401 | B93: 向死而生 | C93: 受击后，60%的概率，回复自身最大生命值10%的血量。 | D93: 受击后，30%的概率，回复自身最大生命值10%的血量。 | L93: 受击后，30%的概率，回复自身最大生命值10%的血量。
A94: 511402 | B94: 同归 | C94: 受击后，有60%的概率对敌方全体造成25%攻击力的魔法伤害 | D94: 受击后，有20%的概率对敌方全体造成25%攻击力的魔法伤害 | L94: 受击后，有20%的概率对敌方全体造成25%攻击力的魔法伤害
A95: 511403 | B95: 不倒 | C95: 受击后，60%的概率，回复自身的60%攻击力的血量 | D95: 受击后，40%的概率，回复自身的60%攻击力的血量 | L95: 受击后，40%的概率，回复自身的60%攻击力的血量
A96: 511404 | B96: 反击 | C96: 受击后，有30%的概率对随机1人造成100%护甲值的真实伤害。 | D96: 受击后，有30%的概率对随机1人造成50%护甲值的真实伤害。 | L96: 受击后，有30%的概率对随机1人造成50%护甲值的真实伤害。
A97: 511405 | B97: 反击 | C97: 受击后，有30%的概率对随机1人造成100%魔抗值的真实伤害。 | D97: 受击后，有30%的概率对随机1人造成50%魔抗值的真实伤害。 | L97: 受击后，有30%的概率对随机1人造成50%魔抗值的真实伤害。
A98: 514301 | B98: 同心协力 | C98: 发动技能后，60%的概率为我方随机角色增加施法者40%攻击的攻击力，持续10秒。 | D98: 发动技能后，40%的概率为我方随机角色增加施法者40%攻击的攻击力，持续10秒。 | L98: 发动技能后，40%的概率为我方随机角色增加施法者40%攻击的攻击力，持续10秒。
A99: 514302 | B99: 同甘共苦 | C99: 发动技能后，60%的概率为我方随机角色增加施法者40%攻击的护甲，持续10秒。 | L99: 发动技能后，60%的概率为我方随机角色增加施法者40%攻击的护甲，持续10秒。
A100: 514303 | B100: 同心明神 | C100: 发动技能后，60%的概率为我方随机角色增加施法者40%攻击的魔抗，持续10秒。 | D100: 发动技能后，40%的概率为我方随机角色增加施法者40%攻击的魔抗，持续10秒。 | L100: 发动技能后，40%的概率为我方随机角色增加施法者40%攻击的魔抗，持续10秒。
A101: 514304 | B101: 同进同退 | C101: 发动技能后，60%的概率为我方随机角色增加施法者40%攻击的速度，持续10秒。 | L101: 发动技能后，60%的概率为我方随机角色增加施法者40%攻击的速度，持续10秒。
A102: 514305 | B102: 疾风 | C102: 发动技能后，增加自身25%速度，持续8秒。 | D102: 发动技能后，10%增加自身8%速度，持续8秒。 | L102: 发动技能后，10%增加自身8%速度，持续8秒。
A103: 514306 | B103: 移形换影 | C103: 发动技能后，增加己方全体10%速度,持续8秒 | D103: 发动技能后，10%减少敌方全体5%速度,持续6秒 | L103: 发动技能后，10%减少敌方全体5%速度,持续6秒
A104: 514307 | B104: 羁绊 | C104: 发动技能后，减少敌方全体10%速度,持续8秒 | D104: 发动技能后，10%减少敌方全体5%速度,持续6秒 | L104: 发动技能后，10%减少敌方全体5%速度,持续6秒
A105: 514401 | B105: 援护 | C105: 发动技能后，45%的概率为我方攻击最高的1人持续治疗，在5秒内回复50%攻击力的生命值。 | D105: 发动技能后，45%的概率为我方攻击最高的1人持续治疗，在5秒内回复100%攻击力的生命值。 | L105: 发动技能后，45%的概率为我方攻击最高的1人持续治疗，在5秒内回复100%攻击力的生命值。
A106: 515401 | B106: 援护 | C106: 发动技能后，45%的概率为我方攻击最高的1人持续治疗，在5秒内回复50%攻击力的生命值。 | D106: 发动技能后，45%的概率为我方攻击最高的1人持续治疗，在5秒内回复100%攻击力的生命值。 | L106: 发动技能后，45%的概率为我方攻击最高的1人持续治疗，在5秒内回复100%攻击力的生命值。
A107: 540301 | B107: 疾风 | C107: 发动技能后，增加自身30%速度，持续10秒。 | D107: 发动技能后，10%增加自身10%速度，持续8秒。 | L107: 发动技能后，10%增加自身10%速度，持续8秒。
A108: 550101 | B108: 强击 | C108: 造成伤害时，额外增加500点伤害。 | D108: 造成伤害时，额外增加1000点伤害。 | L108: 造成伤害时，额外增加1000点伤害。
A109: 550401 | B109: 暗伤 | C109: 发动技能后，60%的概率对敌方随机1名施加30%攻击力的物理伤害。 | L109: 发动技能后，60%的概率对敌方随机1名施加30%攻击力的物理伤害。
A110: 550601 | B110: 饮血 | C110: 造成伤害时，将伤害的10%转化为自身生命 | D110: 造成伤害时，将伤害的30%转化为自身生命 | L110: 造成伤害时，将伤害的30%转化为自身生命

Sheet 辅助
B2: 品质 | D2: 部位 | F2: 职业
B3: 2 | C3: 绿 | D3: 1 | E3: 武器 | F3: 0 | G3: 通用
B4: 3 | C4: 蓝 | D4: 2 | E4: 铠甲 | F4: 1 | G4: 秘法
B5: 4 | C5: 紫 | D5: 3 | E5: 头饰 | F5: 2 | G5: 天罚
B6: 5 | C6: 橙 | D6: 4 | E6: 鞋子 | F6: 3 | G6: 武卫
F7: 4 | G7: 玄策
F8: 5 | G8: 生花
B9: id命名规则
B10: 第一位 | C10: 品质
B11: 第二位 | C11: 部位 | M11: 410101
B12: 第三位 | C12: 职业 | M12: 400302
M13: 400303
M14: 400301
M15: 450401
M16: 450402
M17: 400203
M18: 400205
M19: 503505
M20: 414301
M21: 414302
M22: 414303
M23: 414301
M24: 414302
M25: 414303
M26: 400304
M27: 400305
M28: 400306
M29: 503504
M30: 414401
M31: 510311
M32: 500506
M33: 500505
M34: 500102
M35: 500103
M36: 500104
M37: 500105
M38: 500106
M39: 500402
M40: 400402
M41: 500507
M42: 400202
M43: 400204
M44: 400401
M45: 411401
M46: 400101
M47: 411201
M48: 411202
M49: 500206
M50: 500207
M51: 503305
M52: 503306
M53: 500602
M54: 500302
M55: 440301

Sheet Sheet2
B1: 角色id | C1: 技能 | D1: 等级 | E1: 输出技能id | F1: 技能名称 | G1: 技能描述
B2: 10001 | C2: 1 | D2: 1 | E2: =[1]!SUMSTRING(B2:D2,"") ->  | F2: =VLOOKUP(E2,Sheet1!$I:$K,3,0) ->  | G2: =VLOOKUP(E2,Sheet1!$I:$L,4,0) -> 
B3: 10001 | C3: 1 | D3: 2 | E3: =[1]!SUMSTRING(B3:D3,"") ->  | F3: =F2 ->  | G3: =G2 -> 
B4: 10001 | C4: 1 | D4: 3 | E4: =[1]!SUMSTRING(B4:D4,"") ->  | F4: =F3 ->  | G4: =G3 -> 
B5: 10001 | C5: 1 | D5: 4 | E5: =[1]!SUMSTRING(B5:D5,"") ->  | F5: =F4 ->  | G5: =G2 -> 
B6: 10001 | C6: 1 | D6: 5 | E6: =[1]!SUMSTRING(B6:D6,"") ->  | F6: =F5 ->  | G6: =G2 -> 
B7: 10001 | C7: 2 | D7: =D2 -> 1 | E7: =[1]!SUMSTRING(B7:D7,"") ->  | F7: =VLOOKUP(E7,Sheet1!$I:$K,3,0) ->  | G7: =VLOOKUP(E7,Sheet1!$I:$L,4,0) -> 
B8: 10001 | C8: 2 | D8: =D3 -> 2 | E8: =[1]!SUMSTRING(B8:D8,"") ->  | F8: =F7 ->  | G8: =G7 -> 
B9: 10001 | C9: 2 | D9: =D4 -> 3 | E9: =[1]!SUMSTRING(B9:D9,"") ->  | F9: =F8 ->  | G9: =G8 -> 
B10: 10001 | C10: 2 | D10: =D5 -> 4 | E10: =[1]!SUMSTRING(B10:D10,"") ->  | F10: =F9 ->  | G10: =G7 -> 
B11: 10001 | C11: 2 | D11: =D6 -> 5 | E11: =[1]!SUMSTRING(B11:D11,"") ->  | F11: =F10 ->  | G11: =G7 -> 
B12: =B2+1 -> 10002 | C12: =C2 -> 1 | D12: 1 | E12: =[1]!SUMSTRING(B12:D12,"") ->  | F12: =VLOOKUP(E12,Sheet1!$I:$K,3,0) ->  | G12: =VLOOKUP(E12,Sheet1!$I:$L,4,0) -> 
B13: =B3+1 -> 10002 | C13: 1 | D13: 2 | E13: =[1]!SUMSTRING(B13:D13,"") ->  | F13: =F12 ->  | G13: =G12 -> 
B14: 10002 | C14: 1 | D14: 3 | E14: =[1]!SUMSTRING(B14:D14,"") ->  | G14: =G13 -> 
B15: 10002 | C15: 1 | D15: 4 | E15: =[1]!SUMSTRING(B15:D15,"") ->  | G15: =G12 -> 
B16: 10002 | C16: 1 | D16: 5 | E16: =[1]!SUMSTRING(B16:D16,"") ->  | G16: =G12 -> 
B17: 10002 | C17: 2 | D17: 1 | E17: =[1]!SUMSTRING(B17:D17,"") ->  | F17: =VLOOKUP(E17,Sheet1!$I:$K,3,0) ->  | G17: =VLOOKUP(E17,Sheet1!$I:$L,4,0) -> 
B18: 10002 | C18: 2 | D18: 2 | E18: =[1]!SUMSTRING(B18:D18,"") ->  | F18: =F17 ->  | G18: =G17 -> 
B19: 10002 | C19: 2 | D19: 3 | E19: =[1]!SUMSTRING(B19:D19,"") ->  | G19: =G18 -> 
B20: 10002 | C20: 2 | D20: 4 | E20: =[1]!SUMSTRING(B20:D20,"") ->  | G20: =G17 -> 
B21: 10002 | C21: 2 | D21: 5 | E21: =[1]!SUMSTRING(B21:D21,"") ->  | G21: =G17 -> 
B22: 10003 | C22: 1 | D22: 1 | E22: =[1]!SUMSTRING(B22:D22,"") ->  | F22: =VLOOKUP(E22,Sheet1!$I:$K,3,0) ->  | G22: =VLOOKUP(E22,Sheet1!$I:$L,4,0) -> 
B23: 10003 | C23: 1 | D23: 2 | E23: =[1]!SUMSTRING(B23:D23,"") ->  | F23: =F22 ->  | G23: =G22 -> 
B24: 10003 | C24: 1 | D24: 3 | E24: =[1]!SUMSTRING(B24:D24,"") ->  | G24: =G23 -> 
B25: 10003 | C25: 1 | D25: 4 | E25: =[1]!SUMSTRING(B25:D25,"") ->  | G25: =G22 -> 
B26: 10003 | C26: 1 | D26: 5 | E26: =[1]!SUMSTRING(B26:D26,"") ->  | G26: =G22 -> 
B27: 10003 | C27: 2 | D27: 1 | E27: =[1]!SUMSTRING(B27:D27,"") ->  | F27: =VLOOKUP(E27,Sheet1!$I:$K,3,0) ->  | G27: =VLOOKUP(E27,Sheet1!$I:$L,4,0) -> 
B28: 10003 | C28: 2 | D28: 2 | E28: =[1]!SUMSTRING(B28:D28,"") ->  | F28: =F27 ->  | G28: =G27 -> 
B29: 10003 | C29: 2 | D29: 3 | E29: =[1]!SUMSTRING(B29:D29,"") ->  | G29: =G28 -> 
B30: 10003 | C30: 2 | D30: 4 | E30: =[1]!SUMSTRING(B30:D30,"") ->  | G30: =G27 -> 
B31: 10003 | C31: 2 | D31: 5 | E31: =[1]!SUMSTRING(B31:D31,"") ->  | G31: =G27 -> 
B32: 10004 | C32: =C22 -> 1 | D32: 1 | E32: =[1]!SUMSTRING(B32:D32,"") ->  | F32: =VLOOKUP(E32,Sheet1!$I:$K,3,0) ->  | G32: =VLOOKUP(E32,Sheet1!$I:$L,4,0) -> 
B33: 10004 | C33: 1 | D33: 2 | E33: =[1]!SUMSTRING(B33:D33,"") ->  | F33: =F32 ->  | G33: =G32 -> 
B34: 10004 | C34: 1 | D34: 3 | E34: =[1]!SUMSTRING(B34:D34,"") ->  | G34: =G33 -> 
B35: 10004 | C35: 1 | D35: 4 | E35: =[1]!SUMSTRING(B35:D35,"") ->  | G35: =G32 -> 
B36: 10004 | C36: 1 | D36: 5 | E36: =[1]!SUMSTRING(B36:D36,"") ->  | G36: =G32 -> 
B37: 10004 | C37: 2 | D37: 1 | E37: =[1]!SUMSTRING(B37:D37,"") ->  | F37: =VLOOKUP(E37,Sheet1!$I:$K,3,0) ->  | G37: =VLOOKUP(E37,Sheet1!$I:$L,4,0) -> 
B38: 10004 | C38: 2 | D38: 2 | E38: =[1]!SUMSTRING(B38:D38,"") ->  | F38: =F37 ->  | G38: =G37 -> 
B39: 10004 | C39: 2 | D39: 3 | E39: =[1]!SUMSTRING(B39:D39,"") ->  | G39: =G38 -> 
B40: 10004 | C40: 2 | D40: 4 | E40: =[1]!SUMSTRING(B40:D40,"") ->  | G40: =G37 -> 
B41: 10004 | C41: 2 | D41: 5 | E41: =[1]!SUMSTRING(B41:D41,"") ->  | G41: =G37 -> 
B42: 10005 | C42: 1 | D42: 1 | E42: =[1]!SUMSTRING(B42:D42,"") ->  | F42: =VLOOKUP(E42,Sheet1!$I:$K,3,0) ->  | G42: =VLOOKUP(E42,Sheet1!$I:$L,4,0) -> 
B43: 10005 | C43: 1 | D43: 2 | E43: =[1]!SUMSTRING(B43:D43,"") ->  | F43: =F42 ->  | G43: =G42 -> 
B44: 10005 | C44: 1 | D44: 3 | E44: =[1]!SUMSTRING(B44:D44,"") ->  | G44: =G43 -> 
B45: 10005 | C45: 1 | D45: 4 | E45: =[1]!SUMSTRING(B45:D45,"") ->  | G45: =G42 -> 
B46: 10005 | C46: 1 | D46: 5 | E46: =[1]!SUMSTRING(B46:D46,"") ->  | G46: =G42 -> 
B47: 10005 | C47: 2 | D47: 1 | E47: =[1]!SUMSTRING(B47:D47,"") ->  | F47: =VLOOKUP(E47,Sheet1!$I:$K,3,0) ->  | G47: =VLOOKUP(E47,Sheet1!$I:$L,4,0) -> 
B48: 10005 | C48: 2 | D48: 2 | E48: =[1]!SUMSTRING(B48:D48,"") ->  | F48: =F47 ->  | G48: =G47 -> 
B49: 10005 | C49: 2 | D49: 3 | E49: =[1]!SUMSTRING(B49:D49,"") ->  | G49: =G48 -> 
B50: 10005 | C50: 2 | D50: 4 | E50: =[1]!SUMSTRING(B50:D50,"") ->  | G50: =G47 -> 
B51: 10005 | C51: 2 | D51: 5 | E51: =[1]!SUMSTRING(B51:D51,"") ->  | G51: =G47 -> 
B52: 10006 | C52: =C42 -> 1 | D52: 1 | E52: =[1]!SUMSTRING(B52:D52,"") ->  | F52: =VLOOKUP(E52,Sheet1!$I:$K,3,0) ->  | G52: =VLOOKUP(E52,Sheet1!$I:$L,4,0) -> 
B53: 10006 | C53: 1 | D53: 2 | E53: =[1]!SUMSTRING(B53:D53,"") ->  | F53: =F52 ->  | G53: =G52 -> 
B54: 10006 | C54: 1 | D54: 3 | E54: =[1]!SUMSTRING(B54:D54,"") ->  | G54: =G53 -> 
B55: 10006 | C55: 1 | D55: 4 | E55: =[1]!SUMSTRING(B55:D55,"") ->  | G55: =G52 -> 
B56: 10006 | C56: 1 | D56: 5 | E56: =[1]!SUMSTRING(B56:D56,"") ->  | G56: =G52 -> 
B57: 10006 | C57: 2 | D57: 1 | E57: =[1]!SUMSTRING(B57:D57,"") ->  | F57: =VLOOKUP(E57,Sheet1!$I:$K,3,0) ->  | G57: =VLOOKUP(E57,Sheet1!$I:$L,4,0) -> 
B58: 10006 | C58: 2 | D58: 2 | E58: =[1]!SUMSTRING(B58:D58,"") ->  | F58: =F57 ->  | G58: =G57 -> 
B59: 10006 | C59: 2 | D59: 3 | E59: =[1]!SUMSTRING(B59:D59,"") ->  | G59: =G58 -> 
B60: 10006 | C60: 2 | D60: 4 | E60: =[1]!SUMSTRING(B60:D60,"") ->  | G60: =G57 -> 
B61: 10006 | C61: 2 | D61: 5 | E61: =[1]!SUMSTRING(B61:D61,"") ->  | G61: =G57 -> 
B62: 10007 | C62: 1 | D62: 1 | E62: =[1]!SUMSTRING(B62:D62,"") ->  | F62: =VLOOKUP(E62,Sheet1!$I:$K,3,0) ->  | G62: =VLOOKUP(E62,Sheet1!$I:$L,4,0) -> 
B63: 10007 | C63: 1 | D63: 2 | E63: =[1]!SUMSTRING(B63:D63,"") ->  | F63: =F62 ->  | G63: =G62 -> 
B64: 10007 | C64: 1 | D64: 3 | E64: =[1]!SUMSTRING(B64:D64,"") ->  | G64: =G63 -> 
B65: 10007 | C65: 1 | D65: 4 | E65: =[1]!SUMSTRING(B65:D65,"") ->  | G65: =G62 -> 
B66: 10007 | C66: 1 | D66: 5 | E66: =[1]!SUMSTRING(B66:D66,"") ->  | G66: =G62 -> 
B67: 10007 | C67: 2 | D67: 1 | E67: =[1]!SUMSTRING(B67:D67,"") ->  | F67: =VLOOKUP(E67,Sheet1!$I:$K,3,0) ->  | G67: =VLOOKUP(E67,Sheet1!$I:$L,4,0) -> 
B68: 10007 | C68: 2 | D68: 2 | E68: =[1]!SUMSTRING(B68:D68,"") ->  | F68: =F67 ->  | G68: =G67 -> 
B69: 10007 | C69: 2 | D69: 3 | E69: =[1]!SUMSTRING(B69:D69,"") ->  | G69: =G68 -> 
B70: 10007 | C70: 2 | D70: 4 | E70: =[1]!SUMSTRING(B70:D70,"") ->  | G70: =G67 -> 
B71: 10007 | C71: 2 | D71: 5 | E71: =[1]!SUMSTRING(B71:D71,"") ->  | G71: =G67 -> 
B72: 10008 | C72: =C62 -> 1 | D72: 1 | E72: =[1]!SUMSTRING(B72:D72,"") ->  | F72: =VLOOKUP(E72,Sheet1!$I:$K,3,0) ->  | G72: =VLOOKUP(E72,Sheet1!$I:$L,4,0) -> 
B73: 10008 | C73: 1 | D73: 2 | E73: =[1]!SUMSTRING(B73:D73,"") ->  | F73: =F72 ->  | G73: =G72 -> 
B74: 10008 | C74: 1 | D74: 3 | E74: =[1]!SUMSTRING(B74:D74,"") ->  | G74: =G73 -> 
B75: 10008 | C75: 1 | D75: 4 | E75: =[1]!SUMSTRING(B75:D75,"") ->  | G75: =G72 -> 
B76: 10008 | C76: 1 | D76: 5 | E76: =[1]!SUMSTRING(B76:D76,"") ->  | G76: =G72 -> 
B77: =B67+1 -> 10008 | C77: 2 | D77: 1 | E77: =[1]!SUMSTRING(B77:D77,"") ->  | F77: =VLOOKUP(E77,Sheet1!$I:$K,3,0) ->  | G77: =VLOOKUP(E77,Sheet1!$I:$L,4,0) -> 
B78: 10008 | C78: 2 | D78: 2 | E78: =[1]!SUMSTRING(B78:D78,"") ->  | F78: =F77 ->  | G78: =G77 -> 
B79: 10008 | C79: 2 | D79: 3 | E79: =[1]!SUMSTRING(B79:D79,"") ->  | G79: =G78 -> 
B80: 10008 | C80: 2 | D80: 4 | E80: =[1]!SUMSTRING(B80:D80,"") ->  | G80: =G77 -> 
B81: 10008 | C81: 2 | D81: 5 | E81: =[1]!SUMSTRING(B81:D81,"") ->  | G81: =G77 -> 
B82: 10009 | C82: 1 | D82: 1 | E82: =[1]!SUMSTRING(B82:D82,"") ->  | F82: =VLOOKUP(E82,Sheet1!$I:$K,3,0) ->  | G82: =VLOOKUP(E82,Sheet1!$I:$L,4,0) -> 
B83: 10009 | C83: 1 | D83: 2 | E83: =[1]!SUMSTRING(B83:D83,"") ->  | F83: =F82 ->  | G83: =G82 -> 
B84: 10009 | C84: 1 | D84: 3 | E84: =[1]!SUMSTRING(B84:D84,"") ->  | G84: =G83 -> 
B85: 10009 | C85: 1 | D85: 4 | E85: =[1]!SUMSTRING(B85:D85,"") ->  | G85: =G82 -> 
B86: 10009 | C86: 1 | D86: 5 | E86: =[1]!SUMSTRING(B86:D86,"") ->  | G86: =G82 -> 
B87: 10009 | C87: 2 | D87: 1 | E87: =[1]!SUMSTRING(B87:D87,"") ->  | F87: =VLOOKUP(E87,Sheet1!$I:$K,3,0) ->  | G87: =VLOOKUP(E87,Sheet1!$I:$L,4,0) -> 
B88: 10009 | C88: 2 | D88: 2 | E88: =[1]!SUMSTRING(B88:D88,"") ->  | F88: =F87 ->  | G88: =G87 -> 
B89: 10009 | C89: 2 | D89: 3 | E89: =[1]!SUMSTRING(B89:D89,"") ->  | G89: =G88 -> 
B90: 10009 | C90: 2 | D90: 4 | E90: =[1]!SUMSTRING(B90:D90,"") ->  | G90: =G87 -> 
B91: 10009 | C91: 2 | D91: 5 | E91: =[1]!SUMSTRING(B91:D91,"") ->  | G91: =G87 -> 
B92: 10010 | C92: =C82 -> 1 | D92: 1 | E92: =[1]!SUMSTRING(B92:D92,"") ->  | F92: =VLOOKUP(E92,Sheet1!$I:$K,3,0) ->  | G92: =VLOOKUP(E92,Sheet1!$I:$L,4,0) -> 
B93: 10010 | C93: 1 | D93: 2 | E93: =[1]!SUMSTRING(B93:D93,"") ->  | F93: =F92 ->  | G93: =G92 -> 
B94: 10010 | C94: 1 | D94: 3 | E94: =[1]!SUMSTRING(B94:D94,"") ->  | G94: =G93 -> 
B95: 10010 | C95: 1 | D95: 4 | E95: =[1]!SUMSTRING(B95:D95,"") ->  | G95: =G92 -> 
B96: 10010 | C96: 1 | D96: 5 | E96: =[1]!SUMSTRING(B96:D96,"") ->  | G96: =G92 -> 
B97: 10010 | C97: 2 | D97: 1 | E97: =[1]!SUMSTRING(B97:D97,"") ->  | F97: =VLOOKUP(E97,Sheet1!$I:$K,3,0) ->  | G97: =VLOOKUP(E97,Sheet1!$I:$L,4,0) -> 
B98: 10010 | C98: 2 | D98: 2 | E98: =[1]!SUMSTRING(B98:D98,"") ->  | F98: =F97 ->  | G98: =G97 -> 
B99: 10010 | C99: 2 | D99: 3 | E99: =[1]!SUMSTRING(B99:D99,"") ->  | G99: =G98 -> 
B100: 10010 | C100: 2 | D100: 4 | E100: =[1]!SUMSTRING(B100:D100,"") ->  | G100: =G97 -> 
B101: 10010 | C101: 2 | D101: 5 | E101: =[1]!SUMSTRING(B101:D101,"") ->  | G101: =G97 -> 
B102: 10011 | C102: 1 | D102: 1 | E102: =[1]!SUMSTRING(B102:D102,"") ->  | F102: =VLOOKUP(E102,Sheet1!$I:$K,3,0) ->  | G102: =VLOOKUP(E102,Sheet1!$I:$L,4,0) -> 
B103: 10011 | C103: 1 | D103: 2 | E103: =[1]!SUMSTRING(B103:D103,"") ->  | F103: =F102 ->  | G103: =G102 -> 
B104: 10011 | C104: 1 | D104: 3 | E104: =[1]!SUMSTRING(B104:D104,"") ->  | G104: =G103 -> 
B105: 10011 | C105: 1 | D105: 4 | E105: =[1]!SUMSTRING(B105:D105,"") ->  | G105: =G102 -> 
B106: 10011 | C106: 1 | D106: 5 | E106: =[1]!SUMSTRING(B106:D106,"") ->  | G106: =G102 -> 
B107: 10011 | C107: 2 | D107: 1 | E107: =[1]!SUMSTRING(B107:D107,"") ->  | F107: =VLOOKUP(E107,Sheet1!$I:$K,3,0) ->  | G107: =VLOOKUP(E107,Sheet1!$I:$L,4,0) -> 
B108: 10011 | C108: 2 | D108: 2 | E108: =[1]!SUMSTRING(B108:D108,"") ->  | F108: =F107 ->  | G108: =G107 -> 
B109: 10011 | C109: 2 | D109: 3 | E109: =[1]!SUMSTRING(B109:D109,"") ->  | G109: =G108 -> 
B110: 10011 | C110: 2 | D110: 4 | E110: =[1]!SUMSTRING(B110:D110,"") ->  | G110: =G107 -> 
B111: 10011 | C111: 2 | D111: 5 | E111: =[1]!SUMSTRING(B111:D111,"") ->  | G111: =G107 -> 
B112: 10012 | C112: =C102 -> 1 | D112: 1 | E112: =[1]!SUMSTRING(B112:D112,"") ->  | F112: =VLOOKUP(E112,Sheet1!$I:$K,3,0) ->  | G112: =VLOOKUP(E112,Sheet1!$I:$L,4,0) -> 
B113: 10012 | C113: 1 | D113: 2 | E113: =[1]!SUMSTRING(B113:D113,"") ->  | F113: =F112 ->  | G113: =G112 -> 
B114: 10012 | C114: 1 | D114: 3 | E114: =[1]!SUMSTRING(B114:D114,"") ->  | G114: =G113 -> 
B115: 10012 | C115: 1 | D115: 4 | E115: =[1]!SUMSTRING(B115:D115,"") ->  | G115: =G112 -> 
B116: 10012 | C116: 1 | D116: 5 | E116: =[1]!SUMSTRING(B116:D116,"") ->  | G116: =G112 -> 
B117: 10012 | C117: 2 | D117: 1 | E117: =[1]!SUMSTRING(B117:D117,"") ->  | F117: =VLOOKUP(E117,Sheet1!$I:$K,3,0) ->  | G117: =VLOOKUP(E117,Sheet1!$I:$L,4,0) -> 
B118: 10012 | C118: 2 | D118: 2 | E118: =[1]!SUMSTRING(B118:D118,"") ->  | F118: =F117 ->  | G118: =G117 -> 
B119: 10012 | C119: 2 | D119: 3 | E119: =[1]!SUMSTRING(B119:D119,"") ->  | G119: =G118 -> 
B120: 10012 | C120: 2 | D120: 4 | E120: =[1]!SUMSTRING(B120:D120,"") ->  | G120: =G117 -> 
B121: 10012 | C121: 2 | D121: 5 | E121: =[1]!SUMSTRING(B121:D121,"") ->  | G121: =G117 -> 
B122: 10013 | C122: 1 | D122: 1 | E122: =[1]!SUMSTRING(B122:D122,"") ->  | F122: =VLOOKUP(E122,Sheet1!$I:$K,3,0) ->  | G122: =VLOOKUP(E122,Sheet1!$I:$L,4,0) -> 
B123: 10013 | C123: 1 | D123: 2 | E123: =[1]!SUMSTRING(B123:D123,"") ->  | F123: =F122 ->  | G123: =G122 -> 
B124: 10013 | C124: 1 | D124: 3 | E124: =[1]!SUMSTRING(B124:D124,"") ->  | G124: =G123 -> 
B125: 10013 | C125: 1 | D125: 4 | E125: =[1]!SUMSTRING(B125:D125,"") ->  | G125: =G122 -> 
B126: 10013 | C126: 1 | D126: 5 | E126: =[1]!SUMSTRING(B126:D126,"") ->  | G126: =G122 -> 
B127: 10013 | C127: 2 | D127: 1 | E127: =[1]!SUMSTRING(B127:D127,"") ->  | F127: =VLOOKUP(E127,Sheet1!$I:$K,3,0) ->  | G127: =VLOOKUP(E127,Sheet1!$I:$L,4,0) -> 
B128: 10013 | C128: 2 | D128: 2 | E128: =[1]!SUMSTRING(B128:D128,"") ->  | F128: =F127 ->  | G128: =G127 -> 
B129: 10013 | C129: 2 | D129: 3 | E129: =[1]!SUMSTRING(B129:D129,"") ->  | G129: =G128 -> 
B130: 10013 | C130: 2 | D130: 4 | E130: =[1]!SUMSTRING(B130:D130,"") ->  | G130: =G127 -> 
B131: 10013 | C131: 2 | D131: 5 | E131: =[1]!SUMSTRING(B131:D131,"") ->  | G131: =G127 -> 
B132: 10014 | C132: =C122 -> 1 | D132: 1 | E132: =[1]!SUMSTRING(B132:D132,"") ->  | F132: =VLOOKUP(E132,Sheet1!$I:$K,3,0) ->  | G132: =VLOOKUP(E132,Sheet1!$I:$L,4,0) -> 
B133: 10014 | C133: 1 | D133: 2 | E133: =[1]!SUMSTRING(B133:D133,"") ->  | F133: =F132 ->  | G133: =G132 -> 
B134: 10014 | C134: 1 | D134: 3 | E134: =[1]!SUMSTRING(B134:D134,"") ->  | G134: =G133 -> 
B135: 10014 | C135: 1 | D135: 4 | E135: =[1]!SUMSTRING(B135:D135,"") ->  | G135: =G132 -> 
B136: 10014 | C136: 1 | D136: 5 | E136: =[1]!SUMSTRING(B136:D136,"") ->  | G136: =G132 -> 
B137: 10014 | C137: 2 | D137: 1 | E137: =[1]!SUMSTRING(B137:D137,"") ->  | F137: =VLOOKUP(E137,Sheet1!$I:$K,3,0) ->  | G137: =VLOOKUP(E137,Sheet1!$I:$L,4,0) -> 
B138: 10014 | C138: 2 | D138: 2 | E138: =[1]!SUMSTRING(B138:D138,"") ->  | F138: =F137 ->  | G138: =G137 -> 
B139: 10014 | C139: 2 | D139: 3 | E139: =[1]!SUMSTRING(B139:D139,"") ->  | G139: =G138 -> 
B140: 10014 | C140: 2 | D140: 4 | E140: =[1]!SUMSTRING(B140:D140,"") ->  | G140: =G137 -> 
B141: =B131+1 -> 10014 | C141: 2 | D141: 5 | E141: =[1]!SUMSTRING(B141:D141,"") ->  | G141: =G137 -> 
B142: 10015 | C142: 1 | D142: 1 | E142: =[1]!SUMSTRING(B142:D142,"") ->  | F142: =VLOOKUP(E142,Sheet1!$I:$K,3,0) ->  | G142: =VLOOKUP(E142,Sheet1!$I:$L,4,0) -> 
B143: 10015 | C143: 1 | D143: 2 | E143: =[1]!SUMSTRING(B143:D143,"") ->  | F143: =F142 ->  | G143: =G142 -> 
B144: 10015 | C144: 1 | D144: 3 | E144: =[1]!SUMSTRING(B144:D144,"") ->  | G144: =G143 -> 
B145: 10015 | C145: 1 | D145: 4 | E145: =[1]!SUMSTRING(B145:D145,"") ->  | G145: =G142 -> 
B146: 10015 | C146: 1 | D146: 5 | E146: =[1]!SUMSTRING(B146:D146,"") ->  | G146: =G142 -> 
B147: 10015 | C147: 2 | D147: 1 | E147: =[1]!SUMSTRING(B147:D147,"") ->  | F147: =VLOOKUP(E147,Sheet1!$I:$K,3,0) ->  | G147: =VLOOKUP(E147,Sheet1!$I:$L,4,0) -> 
B148: 10015 | C148: 2 | D148: 2 | E148: =[1]!SUMSTRING(B148:D148,"") ->  | F148: =F147 ->  | G148: =G147 -> 
B149: 10015 | C149: 2 | D149: 3 | E149: =[1]!SUMSTRING(B149:D149,"") ->  | G149: =G148 -> 
B150: 10015 | C150: 2 | D150: 4 | E150: =[1]!SUMSTRING(B150:D150,"") ->  | G150: =G147 -> 
B151: 10015 | C151: 2 | D151: 5 | E151: =[1]!SUMSTRING(B151:D151,"") ->  | G151: =G147 -> 
B152: 10016 | C152: =C142 -> 1 | D152: 1 | E152: =[1]!SUMSTRING(B152:D152,"") ->  | F152: =VLOOKUP(E152,Sheet1!$I:$K,3,0) ->  | G152: =VLOOKUP(E152,Sheet1!$I:$L,4,0) -> 
B153: 10016 | C153: 1 | D153: 2 | E153: =[1]!SUMSTRING(B153:D153,"") ->  | F153: =F152 ->  | G153: =G152 -> 
B154: 10016 | C154: 1 | D154: 3 | E154: =[1]!SUMSTRING(B154:D154,"") ->  | G154: =G153 -> 
B155: 10016 | C155: 1 | D155: 4 | E155: =[1]!SUMSTRING(B155:D155,"") ->  | G155: =G152 -> 
B156: 10016 | C156: 1 | D156: 5 | E156: =[1]!SUMSTRING(B156:D156,"") ->  | G156: =G152 -> 
B157: 10016 | C157: 2 | D157: 1 | E157: =[1]!SUMSTRING(B157:D157,"") ->  | F157: =VLOOKUP(E157,Sheet1!$I:$K,3,0) ->  | G157: =VLOOKUP(E157,Sheet1!$I:$L,4,0) -> 
B158: 10016 | C158: 2 | D158: 2 | E158: =[1]!SUMSTRING(B158:D158,"") ->  | F158: =F157 ->  | G158: =G157 -> 
B159: 10016 | C159: 2 | D159: 3 | E159: =[1]!SUMSTRING(B159:D159,"") ->  | G159: =G158 -> 
B160: 10016 | C160: 2 | D160: 4 | E160: =[1]!SUMSTRING(B160:D160,"") ->  | G160: =G157 -> 
B161: 10016 | C161: 2 | D161: 5 | E161: =[1]!SUMSTRING(B161:D161,"") ->  | G161: =G157 -> 
B162: 10017 | C162: 1 | D162: 1 | E162: =[1]!SUMSTRING(B162:D162,"") ->  | F162: =VLOOKUP(E162,Sheet1!$I:$K,3,0) ->  | G162: =VLOOKUP(E162,Sheet1!$I:$L,4,0) -> 
B163: 10017 | C163: 1 | D163: 2 | E163: =[1]!SUMSTRING(B163:D163,"") ->  | F163: =F162 ->  | G163: =G162 -> 
B164: 10017 | C164: 1 | D164: 3 | E164: =[1]!SUMSTRING(B164:D164,"") ->  | G164: =G163 -> 
B165: 10017 | C165: 1 | D165: 4 | E165: =[1]!SUMSTRING(B165:D165,"") ->  | G165: =G162 -> 
B166: 10017 | C166: 1 | D166: 5 | E166: =[1]!SUMSTRING(B166:D166,"") ->  | G166: =G162 -> 
B167: 10017 | C167: 2 | D167: 1 | E167: =[1]!SUMSTRING(B167:D167,"") ->  | F167: =VLOOKUP(E167,Sheet1!$I:$K,3,0) ->  | G167: =VLOOKUP(E167,Sheet1!$I:$L,4,0) -> 
B168: 10017 | C168: 2 | D168: 2 | E168: =[1]!SUMSTRING(B168:D168,"") ->  | F168: =F167 ->  | G168: =G167 -> 
B169: 10017 | C169: 2 | D169: 3 | E169: =[1]!SUMSTRING(B169:D169,"") ->  | G169: =G168 -> 
B170: 10017 | C170: 2 | D170: 4 | E170: =[1]!SUMSTRING(B170:D170,"") ->  | G170: =G167 -> 
B171: 10017 | C171: 2 | D171: 5 | E171: =[1]!SUMSTRING(B171:D171,"") ->  | G171: =G167 -> 
B172: 10018 | C172: =C162 -> 1 | D172: 1 | E172: =[1]!SUMSTRING(B172:D172,"") ->  | F172: =VLOOKUP(E172,Sheet1!$I:$K,3,0) ->  | G172: =VLOOKUP(E172,Sheet1!$I:$L,4,0) -> 
B173: 10018 | C173: 1 | D173: 2 | E173: =[1]!SUMSTRING(B173:D173,"") ->  | F173: =F172 ->  | G173: =G172 -> 
B174: 10018 | C174: 1 | D174: 3 | E174: =[1]!SUMSTRING(B174:D174,"") ->  | G174: =G173 -> 
B175: 10018 | C175: 1 | D175: 4 | E175: =[1]!SUMSTRING(B175:D175,"") ->  | G175: =G172 -> 
B176: 10018 | C176: 1 | D176: 5 | E176: =[1]!SUMSTRING(B176:D176,"") ->  | G176: =G172 -> 
B177: 10018 | C177: 2 | D177: 1 | E177: =[1]!SUMSTRING(B177:D177,"") ->  | F177: =VLOOKUP(E177,Sheet1!$I:$K,3,0) ->  | G177: =VLOOKUP(E177,Sheet1!$I:$L,4,0) -> 
B178: 10018 | C178: 2 | D178: 2 | E178: =[1]!SUMSTRING(B178:D178,"") ->  | F178: =F177 ->  | G178: =G177 -> 
B179: 10018 | C179: 2 | D179: 3 | E179: =[1]!SUMSTRING(B179:D179,"") ->  | G179: =G178 -> 
B180: 10018 | C180: 2 | D180: 4 | E180: =[1]!SUMSTRING(B180:D180,"") ->  | G180: =G177 -> 
B181: 10018 | C181: 2 | D181: 5 | E181: =[1]!SUMSTRING(B181:D181,"") ->  | G181: =G177 -> 
B182: 10019 | C182: 1 | D182: 1 | E182: =[1]!SUMSTRING(B182:D182,"") ->  | F182: =VLOOKUP(E182,Sheet1!$I:$K,3,0) ->  | G182: =VLOOKUP(E182,Sheet1!$I:$L,4,0) -> 
B183: 10019 | C183: 1 | D183: 2 | E183: =[1]!SUMSTRING(B183:D183,"") ->  | F183: =F182 ->  | G183: =G182 -> 
B184: 10019 | C184: 1 | D184: 3 | E184: =[1]!SUMSTRING(B184:D184,"") ->  | G184: =G183 -> 
B185: 10019 | C185: 1 | D185: 4 | E185: =[1]!SUMSTRING(B185:D185,"") ->  | G185: =G182 -> 
B186: 10019 | C186: 1 | D186: 5 | E186: =[1]!SUMSTRING(B186:D186,"") ->  | G186: =G182 -> 
B187: 10019 | C187: 2 | D187: 1 | E187: =[1]!SUMSTRING(B187:D187,"") ->  | F187: =VLOOKUP(E187,Sheet1!$I:$K,3,0) ->  | G187: =VLOOKUP(E187,Sheet1!$I:$L,4,0) -> 
B188: 10019 | C188: 2 | D188: 2 | E188: =[1]!SUMSTRING(B188:D188,"") ->  | F188: =F187 ->  | G188: =G187 -> 
B189: 10019 | C189: 2 | D189: 3 | E189: =[1]!SUMSTRING(B189:D189,"") ->  | G189: =G188 -> 
B190: 10019 | C190: 2 | D190: 4 | E190: =[1]!SUMSTRING(B190:D190,"") ->  | G190: =G187 -> 
B191: 10019 | C191: 2 | D191: 5 | E191: =[1]!SUMSTRING(B191:D191,"") ->  | G191: =G187 -> 
B192: 10020 | C192: =C182 -> 1 | D192: 1 | E192: =[1]!SUMSTRING(B192:D192,"") ->  | F192: =VLOOKUP(E192,Sheet1!$I:$K,3,0) ->  | G192: =VLOOKUP(E192,Sheet1!$I:$L,4,0) -> 
B193: 10020 | C193: 1 | D193: 2 | E193: =[1]!SUMSTRING(B193:D193,"") ->  | F193: =F192 ->  | G193: =G192 -> 
B194: 10020 | C194: 1 | D194: 3 | E194: =[1]!SUMSTRING(B194:D194,"") ->  | G194: =G193 -> 
B195: 10020 | C195: 1 | D195: 4 | E195: =[1]!SUMSTRING(B195:D195,"") ->  | G195: =G192 -> 
B196: 10020 | C196: 1 | D196: 5 | E196: =[1]!SUMSTRING(B196:D196,"") ->  | G196: =G192 -> 
B197: 10020 | C197: 2 | D197: 1 | E197: =[1]!SUMSTRING(B197:D197,"") ->  | F197: =VLOOKUP(E197,Sheet1!$I:$K,3,0) ->  | G197: =VLOOKUP(E197,Sheet1!$I:$L,4,0) -> 
B198: 10020 | C198: 2 | D198: 2 | E198: =[1]!SUMSTRING(B198:D198,"") ->  | F198: =F197 ->  | G198: =G197 -> 
B199: 10020 | C199: 2 | D199: 3 | E199: =[1]!SUMSTRING(B199:D199,"") ->  | G199: =G198 -> 
B200: 10020 | C200: 2 | D200: 4 | E200: =[1]!SUMSTRING(B200:D200,"") ->  | G200: =G197 -> 
... 321 more rows

Sheet Sheet1
A1: 10001 | B1: 石御霏 | F1: 10001 | G1: 1 | H1: 1 | I1: 1000111 | J1: =VLOOKUP(F1,$A:$B,2,0) -> 石御霏 | K1: =VLOOKUP(J1,[2]特效需求!$A$5:$F$5664,6,0) -> 凌甲 | L1: =VLOOKUP(J1,[2]特效需求!A$5:G$56,7,FALSE) -> 对敌方单体造成灵魂力%的水属性物理伤害， 对自身有%的概率(+效果命中)造成嘲讽，并提升护甲%，持续x秒。
A2: 10002 | B2: 楚恒 | F2: 10002 | G2: 1 | H2: 1 | I2: 1000211 | J2: =VLOOKUP(F2,$A:$B,2,0) -> 楚恒 | K2: =VLOOKUP(J2,[2]特效需求!$A$5:$F$5664,6,0) -> 啸牙 | L2: =VLOOKUP(J2,[2]特效需求!A$5:G$56,7,FALSE) -> 对敌方单体造成灵魂力%的风属性物理伤害， 对自身有%的概率(+效果命中)造成嘲讽，并提升灵魂力%，持续x秒。
A3: 10003 | B3: 夏侯鸿天 | F3: 10003 | G3: 1 | H3: 1 | I3: 1000311 | J3: =VLOOKUP(F3,$A:$B,2,0) -> 夏侯鸿天 | K3: =VLOOKUP(J3,[2]特效需求!$A$5:$F$5664,6,0) -> 断鸿 | L3: =VLOOKUP(J3,[2]特效需求!A$5:G$56,7,FALSE) -> 对敌方单体造成灵魂力%的地属性物理伤害， 将造成伤害的%转化为生命
A4: 10004 | B4: 应茹 | F4: 10004 | G4: 1 | H4: 1 | I4: 1000411 | J4: 应茹 | K4: =VLOOKUP(J4,[2]特效需求!$A$5:$F$5664,6,0) -> 轻流 | L4: =VLOOKUP(J4,[2]特效需求!A$5:G$56,7,FALSE) -> 对敌方单体造成灵魂力%的风属性魔法伤害， 为当前生命最低的x名队友在x秒内，每秒恢复灵魂力%的生命
A5: 10005 | B5: 端木葵 | F5: 10005 | G5: 1 | H5: 1 | I5: 1000511 | J5: 端木葵 | K5: =VLOOKUP(J5,[2]特效需求!$A$5:$F$5664,6,0) -> 长槐琼灯 | L5: =VLOOKUP(J5,[2]特效需求!A$5:G$56,7,FALSE) -> 对敌方单体造成灵魂力%的地属性魔法伤害， 恢复自身灵魂力%的生命， 持续x秒灵魂力增加25%
A6: 10006 | B6: 兰卿 | F6: 10006 | G6: 1 | H6: 1 | I6: 1000611 | J6: 兰卿 | K6: =VLOOKUP(J6,[2]特效需求!$A$5:$F$5664,6,0) -> 阳炎破阵曲 | L6: =VLOOKUP(J6,[2]特效需求!A$5:G$56,7,FALSE) -> 对敌方全体造成灵魂力%的火属性魔法伤害， 在x秒内，友方全体灵魂力增加%
A7: 10007 | B7: 靖之 | F7: 10007 | G7: 1 | H7: 1 | I7: 1000711 | J7: 靖之 | K7: =VLOOKUP(J7,[2]特效需求!$A$5:$F$5664,6,0) -> 破甲裂 | L7: =VLOOKUP(J7,[2]特效需求!A$5:G$56,7,FALSE) -> 对随机3名敌方造成灵魂力%的水属性物理伤害， 造成伤害后，在x秒内降低目标%的护甲
A8: 10008 | B8: 白梦凡 | F8: 10008 | G8: 1 | H8: 1 | I8: 1000811 | J8: 白梦凡 | K8: =VLOOKUP(J8,[2]特效需求!$A$5:$F$5664,6,0) -> 幻境之瞳 | L8: =VLOOKUP(J8,[2]特效需求!A$5:G$56,7,FALSE) -> 对敌方单体造成灵魂力%的光属性魔法伤害， 对生花类妖灵师造成额外%伤害。
A9: 10009 | B9: 祁菲 | F9: 10009 | G9: 1 | H9: 1 | I9: 1000911 | J9: 祁菲 | K9: =VLOOKUP(J9,[2]特效需求!$A$5:$F$5664,6,0) -> 黑符 | L9: =VLOOKUP(J9,[2]特效需求!A$5:G$56,7,FALSE) -> 对随机3名敌人造成灵魂力%的暗属性物理伤害， 造成伤害时，在x秒内对敌人造成燃烧效果， 燃烧效果持续期间，每秒造成灵魂力%的伤害。
A10: 10010 | B10: 颜祈佳 | F10: 10010 | G10: 1 | H10: 1 | I10: 1001011 | J10: 颜祈佳 | K10: =VLOOKUP(J10,[2]特效需求!$A$5:$F$5664,6,0) -> 涡流 | L10: =VLOOKUP(J10,[2]特效需求!A$5:G$56,7,FALSE) -> 对随机3名敌人造成灵魂力%的水属性魔法伤害， 对武卫类妖灵师造成额外%伤害。
A11: 10011 | B11: 叶延 | F11: 10011 | G11: 1 | H11: 1 | I11: 1001111 | J11: 叶延 | K11: =VLOOKUP(J11,[2]特效需求!$A$5:$F$5664,6,0) -> 地灵咒 | L11: =VLOOKUP(J11,[2]特效需求!A$5:G$56,7,FALSE) -> 对随机2名敌人造成灵魂力%的地属性魔法伤害， 造成伤害时，在x秒内对敌人造成中毒效果， 中毒效果持续期间，每秒造成灵魂力%的伤害。
A12: 10012 | B12: 慕容子期 | F12: 10012 | G12: 1 | H12: 1 | I12: 1001211 | J12: 慕容子期 | K12: =VLOOKUP(J12,[2]特效需求!$A$5:$F$5664,6,0) -> 焚花 | L12: =VLOOKUP(J12,[2]特效需求!A$5:G$56,7,FALSE) -> 对敌方单体造成灵魂力%的火属性物理伤害， 施展技能后，冷却时间增加x秒， 造成伤害时，为敌人附加1层中毒效果，最多叠加x层。
A13: 10013 | B13: 云灵 | F13: 10013 | G13: 1 | H13: 1 | I13: 1001311 | J13: 云灵 | K13: =VLOOKUP(J13,[2]特效需求!$A$5:$F$5664,6,0) -> 黑泉利箭 | L13: =VLOOKUP(J13,[2]特效需求!A$5:G$56,7,FALSE) -> 对敌方单体造成灵魂力%的地属性物理伤害， 在x秒内，暴击率增加%， 在x秒内，暴击伤害增加%。
A14: 10014 | B14: 耿陶 | F14: 10014 | G14: 1 | H14: 1 | I14: 1001411 | J14: 耿陶 | K14: =VLOOKUP(J14,[2]特效需求!$A$5:$F$5664,6,0) -> 墨意 | L14: =VLOOKUP(J14,[2]特效需求!A$5:G$56,7,FALSE) -> 对敌方2名敌人造成灵魂力%的暗属性物理伤害， 造成伤害时，有%的概率（+效果命中）降低其%护甲， 造成伤害时，有%的概率（+效果命中）沉默x秒。
A15: 10015 | B15: 云 | F15: 10015 | G15: 1 | H15: 1 | I15: 1001511 | J15: 云 | K15: =VLOOKUP(J15,[2]特效需求!$A$5:$F$5664,6,0) -> 辉映 | L15: =VLOOKUP(J15,[2]特效需求!A$5:G$56,7,FALSE) -> 对敌方单体造成灵魂力%的光属性魔法伤害， 将造成伤害的%转化为自身生命
A16: 10016 | B16: 岑以航 | F16: 10016 | G16: 1 | H16: 1 | I16: 1001611 | J16: 岑以航 | K16: =VLOOKUP(J16,[2]特效需求!$A$5:$F$5664,6,0) -> 无明火 | L16: =VLOOKUP(J16,[2]特效需求!A$5:G$56,7,FALSE) -> 对敌方单体造成灵魂力%的火属性魔法伤害， 对异常状态的敌人造成伤害时，无视敌人38%抗性
A17: 10017 | B17: 影蓟 | F17: 10017 | G17: 1 | H17: 1 | I17: 1001711 | J17: =VLOOKUP(F17,$A:$B,2,0) -> 影蓟 | K17: =VLOOKUP(J17,[2]特效需求!$A$5:$F$5664,6,0) -> 晦影 | L17: =VLOOKUP(J17,[2]特效需求!A$5:G$56,7,FALSE) -> 对随机2名敌人造成灵魂力%的暗属性魔法伤害， 造成伤害时，有%的概率（+效果命中）在x秒内护甲降低% 造成伤害时，有%的概率（+效果命中）沉默x秒
A18: 10018 | B18: 朱贺 | F18: 10018 | G18: 1 | H18: 1 | I18: 1001811 | J18: 朱贺 | K18: =VLOOKUP(J18,[2]特效需求!$A$5:$F$5664,6,0) -> 天照 | L18: =VLOOKUP(J18,[2]特效需求!A$5:G$56,7,FALSE) -> 对敌方单体造成灵魂力%的光属性魔法伤害， 造成伤害时，在x秒内对敌人造成流血效果， 流血效果持续期间，每秒造成灵魂力%的伤害。
A19: 10019 | B19: 孔谦 | F19: 10019 | G19: 1 | H19: 1 | I19: 1001911 | J19: 孔谦 | K19: =VLOOKUP(J19,[2]特效需求!$A$5:$F$5664,6,0) -> 辰变 | L19: =VLOOKUP(J19,[2]特效需求!A$5:G$56,7,FALSE) -> 对敌方单体造成灵魂力%的风属性物理伤害， 施展技能后，在x秒内增加自身%灵魂力，%的暴击伤害。
A20: 10020 | B20: 颜无雍 | F20: 10020 | G20: 1 | H20: 1 | I20: 1002011 | J20: 颜无雍 | K20: =VLOOKUP(J20,[2]特效需求!$A$5:$F$5664,6,0) -> 天回 | L20: =VLOOKUP(J20,[2]特效需求!A$5:G$56,7,FALSE) -> 对随机3名敌人造成灵魂力%的火属性物理伤害， 为随机恢复2名友方恢复灵魂力%的生命。
A21: 10021 | B21: 岑以璇 | F21: 10021 | G21: 1 | H21: 1 | I21: 1002111 | J21: 岑以璇 | K21: =VLOOKUP(J21,[2]特效需求!$A$5:$F$5664,6,0) -> 水玉缚灵 | L21: =VLOOKUP(J21,[2]特效需求!A$5:G$56,7,FALSE) -> 对敌方单体造成灵魂力%的水属性魔法伤害， 造成伤害时，有%的概率（+效果命中）眩晕x秒。
A22: 10022 | B22: 颜无诡 | F22: 10022 | G22: 1 | H22: 1 | I22: 1002211 | J22: 颜无诡 | K22: =VLOOKUP(J22,[2]特效需求!$A$5:$F$5664,6,0) -> 煞气 | L22: =VLOOKUP(J22,[2]特效需求!A$5:G$56,7,FALSE) -> 对敌方单体造成灵魂力%的风属性魔法伤害， 造成伤害时，有%的概率（+效果命中）眩晕x秒。
A23: 10023 | B23: 荧荧 | F23: 10023 | G23: 1 | H23: 1 | I23: 1002311 | J23: 荧荧 | K23: =VLOOKUP(J23,[2]特效需求!$A$5:$F$5664,6,0) -> 雷罚 | L23: =VLOOKUP(J23,[2]特效需求!A$5:G$56,7,FALSE) -> 对敌方单体造成灵魂力%的光属性魔法伤害， 在x秒内，抗性增加%
A24: 10024 | B24: 许槿然 | F24: 10024 | G24: 1 | H24: 1 | I24: 1002411 | J24: 许槿然 | K24: =VLOOKUP(J24,[2]特效需求!$A$5:$F$5664,6,0) -> 风烈打 | L24: =VLOOKUP(J24,[2]特效需求!A$5:G$56,7,FALSE) -> 对敌方单体造成灵魂力%的风属性物理伤害， 造成伤害时，有%的概率（+效果命中）眩晕x秒。
A25: 10025 | B25: 唐萱 | F25: 10025 | G25: 1 | H25: 1 | I25: 1002511 | J25: 唐萱 | K25: =VLOOKUP(J25,[2]特效需求!$A$5:$F$5664,6,0) -> 宣火符 | L25: =VLOOKUP(J25,[2]特效需求!A$5:G$56,7,FALSE) -> 对敌方单体造成灵魂力%的火属性魔法伤害， 造成伤害时，有%的概率（+效果命中）眩晕x秒。
A26: 10026 | B26: 孙晴 | F26: 10026 | G26: 1 | H26: 1 | I26: 1002611 | J26: 孙晴 | K26: =VLOOKUP(J26,[2]特效需求!$A$5:$F$5664,6,0) -> 敲山震虎 | L26: =VLOOKUP(J26,[2]特效需求!A$5:G$56,7,FALSE) -> 对随机2名敌方造成灵魂力%的光属性物理伤害， 对天罚类妖灵师造成额外%伤害。
A27: 10027 | B27: 宁月 | F27: 10027 | G27: 1 | H27: 1 | I27: 1002711 | J27: 宁月 | K27: =VLOOKUP(J27,[2]特效需求!$A$5:$F$5664,6,0) -> 应援 | L27: =VLOOKUP(J27,[2]特效需求!A$5:G$56,7,FALSE) -> 对敌方单体造成灵魂力%的光属性物理伤害， 为随机1名友方恢复灵魂力%的生命。
A28: 10028 | B28: 紫川 | F28: 10028 | G28: 1 | H28: 1 | I28: 1002811 | J28: 紫川 | K28: =VLOOKUP(J28,[2]特效需求!$A$5:$F$5664,6,0) -> 落英之舞 | L28: =VLOOKUP(J28,[2]特效需求!A$5:G$56,7,FALSE) -> 对随机2名敌方造成灵魂力%的光属性魔法伤害， 对武卫类妖灵师造成额外%伤害。
A29: 10029 | B29: 晏息 | F29: 10029 | G29: 1 | H29: 1 | I29: 1002911 | J29: =VLOOKUP(F29,$A:$B,2,0) -> 晏息 | K29: =VLOOKUP(J29,[2]特效需求!$A$5:$F$5664,6,0) -> 昙华动地 | L29: =VLOOKUP(J29,[2]特效需求!A$5:G$56,7,FALSE) -> 对随机2名敌方造成灵魂力%的地属性魔法伤害。
A30: 10030 | B30: 瑶瑶 | F30: 10030 | G30: 1 | H30: 1 | I30: 1003011 | J30: 瑶瑶 | K30: =VLOOKUP(J30,[2]特效需求!$A$5:$F$5664,6,0) -> 碧砂 | L30: =VLOOKUP(J30,[2]特效需求!A$5:G$56,7,FALSE) -> 对敌方单体造成灵魂力%的风属性魔法伤害， 造成伤害时，有%的概率（+效果命中）沉默x秒。
A31: 10031 | B31: 贾裴武 | F31: 10031 | G31: 1 | H31: 1 | I31: 1003111 | J31: 贾裴武 | K31: =VLOOKUP(J31,[2]特效需求!$A$5:$F$5664,6,0) -> 破邪二连 | L31: =VLOOKUP(J31,[2]特效需求!A$5:G$56,7,FALSE) -> 对随机2名敌方造成灵魂力%的地属性物理伤害， 对秘法类妖灵师造成额外%伤害。
A32: 10032 | B32: 雷燕 | F32: 10032 | G32: 1 | H32: 1 | I32: 1003211 | J32: 雷燕 | K32: =VLOOKUP(J32,[2]特效需求!$A$5:$F$5664,6,0) -> 天雷地火 | L32: =VLOOKUP(J32,[2]特效需求!A$5:G$56,7,FALSE) -> 对敌方单体造成灵魂力%的地属性物理伤害， 造成伤害时，在x秒内对敌人造成燃烧效果， 燃烧效果持续期间，每秒造成灵魂力%的伤害。
A33: 10033 | B33: 辛夷 | F33: 10033 | G33: 1 | H33: 1 | I33: 1003311 | J33: 辛夷 | K33: =VLOOKUP(J33,[2]特效需求!$A$5:$F$5664,6,0) -> 隐遁 | L33: =VLOOKUP(J33,[2]特效需求!A$5:G$56,7,FALSE) -> 对随机2名敌方造成灵魂力%的地属性物理伤害， 对武卫类妖灵师造成额外%伤害。
A34: 10034 | B34: 伏冥 | F34: 10034 | G34: 1 | H34: 1 | I34: 1003411 | J34: 伏冥 | K34: =VLOOKUP(J34,[2]特效需求!$A$5:$F$5664,6,0) -> 辟魂 | L34: =VLOOKUP(J34,[2]特效需求!A$5:G$56,7,FALSE) -> 对敌方单体造成灵魂力%的暗属性魔法伤害， 造成伤害时，有%的概率（+效果命中）眩晕x秒。
A35: 10035 | B35: 司空染 | F35: 10035 | G35: 1 | H35: 1 | I35: 1003511 | J35: 司空染 | K35: =VLOOKUP(J35,[2]特效需求!$A$5:$F$5664,6,0) -> 血影迷踪 | L35: =VLOOKUP(J35,[2]特效需求!A$5:G$56,7,FALSE) -> 对随机3名敌方造成灵魂力%的暗属性物理伤害， 有%的概率（+效果命中）对生花类妖灵师造成虚弱效果。
A36: 10036 | B36: 解幽 | F36: 10036 | G36: 1 | H36: 1 | I36: 1003611 | J36: 解幽 | K36: =VLOOKUP(J36,[2]特效需求!$A$5:$F$5664,6,0) -> 深海冥灵 | L36: =VLOOKUP(J36,[2]特效需求!A$5:G$56,7,FALSE) -> 对随机2名敌方造成灵魂力%的水属性魔法伤害， 对天罚类妖灵师造成额外%伤害。
A37: 10037 | B37: 薛苓 | F37: 10037 | G37: 1 | H37: 1 | I37: 1003711 | J37: 薛苓 | K37: =VLOOKUP(J37,[2]特效需求!$A$5:$F$5664,6,0) -> 凝霜箭 | L37: =VLOOKUP(J37,[2]特效需求!A$5:G$56,7,FALSE) -> 对敌方单体造成灵魂力%的水属性物理伤害， 在x秒内，自身抗性增加%
A38: 10038 | B38: 常申 | F38: 10038 | G38: 1 | H38: 1 | I38: 1003811 | J38: 常申 | K38: =VLOOKUP(J38,[2]特效需求!$A$5:$F$5664,6,0) -> 火相炎流 | L38: =VLOOKUP(J38,[2]特效需求!A$5:G$56,7,FALSE) -> 对敌方单体造成灵魂力%的火属性魔法伤害， 造成伤害时，武卫类妖灵师降低%抗性，降低%护甲。
A39: 10039 | B39: 呼延腾 | F39: 10039 | G39: 1 | H39: 1 | I39: 1003911 | J39: 呼延腾 | K39: =VLOOKUP(J39,[2]特效需求!$A$5:$F$5664,6,0) -> 寒芒刺 | L39: =VLOOKUP(J39,[2]特效需求!A$5:G$56,7,FALSE) -> 对敌方单体造成灵魂力%的水属性物理伤害， 造成伤害时，在x秒内降低敌人护甲%
A40: 10040 | B40: 冉宜 | F40: 10040 | G40: 1 | H40: 1 | I40: 1004011 | J40: 冉宜 | K40: =VLOOKUP(J40,[2]特效需求!$A$5:$F$5664,6,0) -> 煌炎斩 | L40: =VLOOKUP(J40,[2]特效需求!A$5:G$56,7,FALSE) -> 对随机2名敌人造成灵魂力%的火属性物理伤害， 对玄策类妖灵师造成额外%伤害。
A41: 10041 | B41: 孟灿 | F41: 10041 | G41: 1 | H41: 1 | I41: 1004111 | J41: 孟灿 | K41: =VLOOKUP(J41,[2]特效需求!$A$5:$F$5664,6,0) -> 烈虎归山 | L41: =VLOOKUP(J41,[2]特效需求!A$5:G$56,7,FALSE) -> 对敌方单体造成灵魂力%的火属性物理伤害， 造成伤害的%转化为生命
A42: 10042 | B42: 叶辽 | F42: 10042 | G42: 1 | H42: 1 | I42: 1004211 | J42: 叶辽 | K42: =VLOOKUP(J42,[2]特效需求!$A$5:$F$5664,6,0) -> 寻鹰剑 | L42: =VLOOKUP(J42,[2]特效需求!A$5:G$56,7,FALSE) -> 对随机2名敌人造成灵魂力%的风属性物理伤害。
A43: 10043 | B43: 乌廉 | F43: 10043 | G43: 1 | H43: 1 | I43: 1004311 | J43: 乌廉 | K43: =VLOOKUP(J43,[2]特效需求!$A$5:$F$5664,6,0) -> 侵染之刃 | L43: =VLOOKUP(J43,[2]特效需求!A$5:G$56,7,FALSE) -> 对敌方单体造成灵魂力%的水属性物理伤害， 造成伤害时，在x秒内对敌人造成中毒效果， 中毒效果持续期间，每秒造成灵魂力%的伤害。
A44: 10044 | B44: 姜燧 | F44: 10044 | G44: 1 | H44: 1 | I44: 1004411 | J44: 姜燧 | K44: =VLOOKUP(J44,[2]特效需求!$A$5:$F$5664,6,0) -> 绝息 | L44: =VLOOKUP(J44,[2]特效需求!A$5:G$56,7,FALSE) -> 对随机2名敌人造成灵魂力%的暗属性魔法伤害。 对生花类妖灵师造成额外%伤害。
A45: 10045 | B45: 苏可 | F45: 10045 | G45: 1 | H45: 1 | I45: 1004511 | J45: 苏可 | K45: =VLOOKUP(J45,[2]特效需求!$A$5:$F$5664,6,0) -> 援应 | L45: =VLOOKUP(J45,[2]特效需求!A$5:G$56,7,FALSE) -> 对敌方单体造成灵魂力%的风属性魔法伤害， 为生命比例最低的友方恢复灵魂力%的生命。
A46: 10046 | B46: 林越 | F46: 10046 | G46: 1 | H46: 1 | I46: 1004611 | J46: 林越 | K46: =VLOOKUP(J46,[2]特效需求!$A$5:$F$5664,6,0) -> 光元刃 | L46: =VLOOKUP(J46,[2]特效需求!A$5:G$56,7,FALSE) -> 对随机2名敌人造成灵魂力%的光属性魔法伤害。
A47: 10047 | B47: 赤肥肥 | F47: 10047 | G47: 1 | H47: 1 | I47: 1004711 | J47: 赤肥肥 | K47: =VLOOKUP(J47,[2]特效需求!$A$5:$F$5664,6,0) -> 焦热 | L47: =VLOOKUP(J47,[2]特效需求!A$5:G$56,7,FALSE) -> 对随机2名敌人造成灵魂力%的火属性物理伤害。
A48: 10048 | B48: 银肥肥 | F48: 10048 | G48: 1 | H48: 1 | I48: 1004811 | J48: 银肥肥 | K48: =VLOOKUP(J48,[2]特效需求!$A$5:$F$5664,6,0) -> 吹息 | L48: =VLOOKUP(J48,[2]特效需求!A$5:G$56,7,FALSE) -> 对敌方单体造成灵魂力%的风属性物理伤害。
A49: 10049 | B49: 苍肥肥 | F49: 10049 | G49: 1 | H49: 1 | I49: 1004911 | J49: 苍肥肥 | K49: =VLOOKUP(J49,[2]特效需求!$A$5:$F$5664,6,0) -> 逐浪 | L49: =VLOOKUP(J49,[2]特效需求!A$5:G$56,7,FALSE) -> 对敌方单体造成灵魂力%的水属性魔法伤害。
A50: 10050 | B50: 金肥肥 | F50: 10050 | G50: 1 | H50: 1 | I50: 1005011 | J50: 金肥肥 | K50: =VLOOKUP(J50,[2]特效需求!$A$5:$F$5664,6,0) -> 岩落 | L50: =VLOOKUP(J50,[2]特效需求!A$5:G$56,7,FALSE) -> 对随机2名敌人造成灵魂力%的地属性魔法伤害。
A51: 10051 | B51: 阳魔 | F51: 10051 | G51: 1 | H51: 1 | I51: 1005111 | J51: 阳魔 | K51: =VLOOKUP(J51,[2]特效需求!$A$5:$F$5664,6,0) -> 震元 | L51: =VLOOKUP(J51,[2]特效需求!A$5:G$56,7,FALSE) -> 对敌方单体造成灵魂力%的光属性物理伤害。
A52: 10052 | B52: 阴魔 | F52: 10052 | G52: 1 | H52: 1 | I52: 1005211 | J52: 阴魔 | K52: =VLOOKUP(J52,[2]特效需求!$A$5:$F$5664,6,0) -> 混沌 | L52: =VLOOKUP(J52,[2]特效需求!A$5:G$56,7,FALSE) -> 对敌方单体造成灵魂力%的暗属性魔法伤害。
F53: 10001 | G53: 2 | H53: 1 | I53: 1000121 | J53: =VLOOKUP(F53,$A:$B,2,0) -> 石御霏 | K53: =VLOOKUP(J53,[2]特效需求!A$5:I$56,9,0) -> 震岳 | L53: =VLOOKUP(J53,[2]特效需求!A$5:J$56,10,0) -> 对敌方单体造成灵魂力%的水属性物理伤害， 造成伤害时，有%的概率(+效果命中)眩晕x秒。
F54: 10002 | G54: 2 | H54: 1 | I54: 1000221 | J54: =VLOOKUP(F54,$A:$B,2,0) -> 楚恒 | K54: =VLOOKUP(J54,[2]特效需求!A$5:I$56,9,0) -> 白虎风涛 | L54: =VLOOKUP(J54,[2]特效需求!A$5:J$56,10,0) -> 对随机2名敌方造成灵魂力%的风属性物理伤害， 自身在x秒内获得最大生命%的伤害吸收盾 护盾消失时，对随机1名敌人造成护盾吸收伤害的80%。
F55: 10003 | G55: 2 | H55: 1 | I55: 1000321 | J55: =VLOOKUP(F55,$A:$B,2,0) -> 夏侯鸿天 | K55: =VLOOKUP(J55,[2]特效需求!A$5:I$56,9,0) -> 裂山贯云 | L55: =VLOOKUP(J55,[2]特效需求!A$5:J$56,10,0) -> 对敌方单体造成灵魂力%的地属性物理伤害， 造成伤害时，在x秒内抗性降低% 施展技能后，在x秒内有%的概率对自己施展嘲讽
F56: 10004 | G56: 2 | H56: 1 | I56: 1000421 | J56: 应茹 | K56: =VLOOKUP(J56,[2]特效需求!A$5:I$56,9,0) -> 天咏诀 | L56: =VLOOKUP(J56,[2]特效需求!A$5:J$56,10,0) -> 对敌方全体造成灵魂力%的风属性魔法伤害， 在x秒内，全体队友每秒恢复灵魂力%的生命 技能满级：每次恢复生命时，有%的概率额外恢复%生命
F57: 10005 | G57: 2 | H57: 1 | I57: 1000521 | J57: 端木葵 | K57: =VLOOKUP(J57,[2]特效需求!A$5:I$56,9,0) -> 百卉含英 | L57: =VLOOKUP(J57,[2]特效需求!A$5:J$56,10,0) -> 对随机3名敌人造成灵魂力%的地属性魔法伤害， 施展技能后，全体友方在x秒内，每秒持续恢复灵魂力%的生命
F58: 10006 | G58: 2 | H58: 1 | I58: 1000621 | J58: 兰卿 | K58: =VLOOKUP(J58,[2]特效需求!A$5:I$56,9,0) -> 焚心引 | L58: =VLOOKUP(J58,[2]特效需求!A$5:J$56,10,0) -> 对敌方全体造成灵魂力%的火属性魔法伤害， 受到伤害时，在x秒内灵魂力降低%
F59: 10007 | G59: 2 | H59: 1 | I59: 1000721 | J59: 靖之 | K59: =VLOOKUP(J59,[2]特效需求!A$5:I$56,9,0) -> 轮转之海 | L59: =VLOOKUP(J59,[2]特效需求!A$5:J$56,10,0) -> 对敌方单体造成灵魂力%的水属性物理伤害， 清除CD最长的1名友军立刻成可释放技能， 技能满级：造成伤害后，虚弱敌人x秒
F60: 10008 | G60: 2 | H60: 1 | I60: 1000821 | J60: 白梦凡 | K60: =VLOOKUP(J60,[2]特效需求!A$5:I$56,9,0) -> 无尽莲塘 | L60: =VLOOKUP(J60,[2]特效需求!A$5:J$56,10,0) -> 对敌方全体造成灵魂力%的光属性魔法伤害， 造成伤害时，有%的概率（+效果命中）晕眩敌方，持续x秒 技能满级：造成伤害后，降低目标暴击率，提升自己灵魂力
F61: 10009 | G61: 2 | H61: 1 | I61: 1000921 | J61: 祁菲 | K61: =VLOOKUP(J61,[2]特效需求!A$5:I$56,9,0) -> 炎冥锁狱 | L61: =VLOOKUP(J61,[2]特效需求!A$5:J$56,10,0) -> 对敌方全体造成灵魂力%的暗属性物理伤害， 对燃烧效果的敌人造成额外伤害
F62: 10010 | G62: 2 | H62: 1 | I62: 1001021 | J62: 颜祈佳 | K62: =VLOOKUP(J62,[2]特效需求!A$5:I$56,9,0) -> 龙兴之潮 | L62: =VLOOKUP(J62,[2]特效需求!A$5:J$56,10,0) -> 对敌方全体造成灵魂力%的水属性魔法伤害， 造成伤害后，有%的概率（+效果命中）增加随机2名敌人的冷却时间
F63: 10011 | G63: 2 | H63: 1 | I63: 1001121 | J63: 叶延 | K63: =VLOOKUP(J63,[2]特效需求!A$5:I$56,9,0) -> 缚傀诀 | L63: =VLOOKUP(J63,[2]特效需求!A$5:J$56,10,0) -> 对敌方全体造成灵魂力%的地属性魔法伤害， 对中毒目标有%的概率（+效果命中）眩晕x秒
F64: 10012 | G64: 2 | H64: 1 | I64: 1001221 | J64: 慕容子期 | K64: =VLOOKUP(J64,[2]特效需求!A$5:I$56,9,0) -> 断雨 | L64: =VLOOKUP(J64,[2]特效需求!A$5:J$56,10,0) -> 对血量最低的2名敌人造成灵魂力%的火属性物理伤害， 造成伤害后，有%的概率（+效果命中）使得对方x秒禁疗。
F65: 10013 | G65: 2 | H65: 1 | I65: 1001321 | J65: 云灵 | K65: =VLOOKUP(J65,[2]特效需求!A$5:I$56,9,0) -> 芙蓉箭雨 | L65: =VLOOKUP(J65,[2]特效需求!A$5:J$56,10,0) -> 对灵魂力最高的2名敌人造成灵魂力%的地属性物理伤害， 有%的概率造成一次额外伤害，最多追加x次
F66: 10014 | G66: 2 | H66: 1 | I66: 1001421 | J66: 耿陶 | K66: =VLOOKUP(J66,[2]特效需求!A$5:I$56,9,0) -> 画龙点睛 | L66: =VLOOKUP(J66,[2]特效需求!A$5:J$56,10,0) -> 对敌方随机4名敌人造成灵魂力%的暗属性物理伤害， 处于沉默状态的敌人额外造成%伤害。
F67: 10015 | G67: 2 | H67: 1 | I67: 1001521 | J67: 云 | K67: =VLOOKUP(J67,[2]特效需求!A$5:I$56,9,0) -> 幻影预兆 | L67: =VLOOKUP(J67,[2]特效需求!A$5:J$56,10,0) -> 对随机2名敌人造成灵魂力%的光属性魔法伤害， 造成伤害时，在x秒内偷取随机一名受到伤害的敌方%的灵魂力 技能升满：偷取灵魂力的效果持续期间，增加自身%的暴击伤害
F68: 10016 | G68: 2 | H68: 1 | I68: 1001621 | J68: 岑以航 | K68: =VLOOKUP(J68,[2]特效需求!A$5:I$56,9,0) -> 禁焰觉醒 | L68: =VLOOKUP(J68,[2]特效需求!A$5:J$56,10,0) -> 对随机3名敌方造成灵魂力%的火属性魔法伤害， 造成伤害时，若带有持续恢复效果，则额外造成%的伤害 自身在x秒内护甲降低%，灵魂力提升%
F69: 10017 | G69: 2 | H69: 1 | I69: 1001721 | J69: =VLOOKUP(F69,$A:$B,2,0) -> 影蓟 | K69: =VLOOKUP(J69,[2]特效需求!A$5:I$56,9,0) -> 常世之暗 | L69: =VLOOKUP(J69,[2]特效需求!A$5:J$56,10,0) -> 对随机4名敌人造成灵魂力%的暗属性魔法伤害， 对沉默敌人额外造成%伤害。
F70: 10018 | G70: 2 | H70: 1 | I70: 1001821 | J70: 朱贺 | K70: =VLOOKUP(J70,[2]特效需求!A$5:I$56,9,0) -> 剜心刺骨 | L70: =VLOOKUP(J70,[2]特效需求!A$5:J$56,10,0) -> 对生命比例最低的敌人造成灵魂力%的光属性魔法伤害， 造成伤害时，在x秒内偷取对方%的灵魂力， 造成伤害时，在x秒内对敌人造成流血效果， 流血效果持续期间，每秒造成灵魂力%的伤害。
F71: 10019 | G71: 2 | H71: 1 | I71: 1001921 | J71: 孔谦 | K71: =VLOOKUP(J71,[2]特效需求!A$5:I$56,9,0) -> 凭虚御风 | L71: =VLOOKUP(J71,[2]特效需求!A$5:J$56,10,0) -> 对敌方全体造成灵魂力%的风属性物理伤害， 施展技能后，减少我方全体基础冷却时间x秒。
F72: 10020 | G72: 2 | H72: 1 | I72: 1002021 | J72: 颜无雍 | K72: =VLOOKUP(J72,[2]特效需求!A$5:I$56,9,0) -> 白炎离火 | L72: =VLOOKUP(J72,[2]特效需求!A$5:J$56,10,0) -> 对敌方全体造成灵魂力%的火属性物理伤害， 全体友方x秒内受到伤害降低%
F73: 10021 | G73: 2 | H73: 1 | I73: 1002121 | J73: 岑以璇 | K73: =VLOOKUP(J73,[2]特效需求!A$5:I$56,9,0) -> 深渊流葬 | L73: =VLOOKUP(J73,[2]特效需求!A$5:J$56,10,0) -> 对敌方全体造成灵魂力%的水属性魔法伤害， 造成伤害时，有%的概率使得随机2名敌人x秒内致盲效果， 致盲效果持续期间，点击技与滑动技无法应用指定目标效果
F74: 10022 | G74: 2 | H74: 1 | I74: 1002221 | J74: 颜无诡 | K74: =VLOOKUP(J74,[2]特效需求!A$5:I$56,9,0) -> 侵风摧魂 | L74: =VLOOKUP(J74,[2]特效需求!A$5:J$56,10,0) -> 对生命比例最高的敌人造成灵魂力%的风属性魔法伤害 造成的击杀敌人时，敌方全体受到该次伤害%的伤害
F75: 10023 | G75: 2 | H75: 1 | I75: 1002321 | J75: 荧荧 | K75: =VLOOKUP(J75,[2]特效需求!A$5:I$56,9,0) -> 苍穹天雷 | L75: =VLOOKUP(J75,[2]特效需求!A$5:J$56,10,0) -> 对敌方全体造成灵魂力%的光属性魔法伤害， 造成伤害后，对目标附加荧光，最多叠加10层 对携带荧光的敌人造成伤害时，每层荧光使得本次伤害增加10%。
F76: 10024 | G76: 2 | H76: 1 | I76: 1002421 | J76: 许槿然
F77: 10025 | G77: 2 | H77: 1 | I77: 1002521 | J77: 唐萱
F78: 10026 | G78: 2 | H78: 1 | I78: 1002621 | J78: 孙晴 | K78: =VLOOKUP(J78,[2]特效需求!A$5:I$56,9,0) -> 崩雷式 | L78: =VLOOKUP(J78,[2]特效需求!A$5:J$56,10,0) -> 对随机3名敌方造成灵魂力%的光属性物理伤害， 针对眩晕目标，暴击时，造成额外%的伤害。
F79: 10027 | G79: 2 | H79: 1 | I79: 1002721 | J79: 宁月 | K79: =VLOOKUP(J79,[2]特效需求!A$5:I$56,9,0) -> 兔兔拳 | L79: =VLOOKUP(J79,[2]特效需求!A$5:J$56,10,0) -> 对随机2名敌方造成灵魂力%的光属性物理伤害， 在x秒内，自身暴击率提高%
F80: 10028 | G80: 2 | H80: 1 | I80: 1002821 | J80: 紫川 | K80: =VLOOKUP(J80,[2]特效需求!A$5:I$56,9,0) -> 月舞灵息 | L80: =VLOOKUP(J80,[2]特效需求!A$5:J$56,10,0) -> 对敌方单体造成灵魂力%的光属性魔法伤害， 造成伤害暴击时，降低1秒冷却时间。
F81: 10029 | G81: 2 | H81: 1 | I81: 1002921 | J81: =VLOOKUP(F81,$A:$B,2,0) -> 晏息
F82: 10030 | G82: 2 | H82: 1 | I82: 1003021 | J82: 瑶瑶
F83: 10031 | G83: 2 | H83: 1 | I83: 1003121 | J83: 贾裴武
F84: 10032 | G84: 2 | H84: 1 | I84: 1003221 | J84: 雷燕
F85: 10033 | G85: 2 | H85: 1 | I85: 1003321 | J85: 辛夷
F86: 10034 | G86: 2 | H86: 1 | I86: 1003421 | J86: 伏冥 | K86: =VLOOKUP(J86,[2]特效需求!A$5:I$56,9,0) -> 夺形之雾 | L86: =VLOOKUP(J86,[2]特效需求!A$5:J$56,10,0) -> 对敌方全体造成灵魂力%的暗属性魔法伤害。
F87: 10035 | G87: 2 | H87: 1 | I87: 1003521 | J87: 司空染 | K87: =VLOOKUP(J87,[2]特效需求!A$5:I$56,9,0) -> 沥血诛心 | L87: =VLOOKUP(J87,[2]特效需求!A$5:J$56,10,0) -> 对生命比例最低的敌方造成灵魂力%的暗属性物理伤害，
F88: 10036 | G88: 2 | H88: 1 | I88: 1003621 | J88: 解幽
F89: 10037 | G89: 2 | H89: 1 | I89: 1003721 | J89: 薛苓
F90: 10038 | G90: 2 | H90: 1 | I90: 1003821 | J90: 常申
F91: 10039 | G91: 2 | H91: 1 | I91: 1003921 | J91: 呼延腾
F92: 10040 | G92: 2 | H92: 1 | I92: 1004021 | J92: 冉宜
F93: 10041 | G93: 2 | H93: 1 | I93: 1004121 | J93: 孟灿
F94: 10042 | G94: 2 | H94: 1 | I94: 1004221 | J94: 叶辽
F95: 10043 | G95: 2 | H95: 1 | I95: 1004321 | J95: 乌廉
F96: 10044 | G96: 2 | H96: 1 | I96: 1004421 | J96: 姜燧 | K96: =VLOOKUP(J96,[2]特效需求!A$5:I$56,9,0) -> 化灵灭影 | L96: =VLOOKUP(J96,[2]特效需求!A$5:J$56,10,0) -> 对3名敌人造成灵魂力%的暗属性魔法伤害。 针对处于燃烧或流血状态的敌人，伤害增加%。
F97: 10045 | G97: 2 | H97: 1 | I97: 1004521 | J97: 苏可
F98: 10046 | G98: 2 | H98: 1 | I98: 1004621 | J98: 林越 | K98: =VLOOKUP(J98,[2]特效需求!A$5:I$56,9,0) -> 月曜闪裂 | L98: =VLOOKUP(J98,[2]特效需求!A$5:J$56,10,0) -> 对敌方单体造成灵魂力%的光属性魔法伤害， 造成伤害时，在x秒内对敌人造成流血效果， 流血效果持续期间，每秒造成灵魂力%的伤害。
F99: 10047 | G99: 2 | H99: 1 | I99: 1004721 | J99: 赤肥肥
F100: 10048 | G100: 2 | H100: 1 | I100: 1004821 | J100: 银肥肥
F101: 10049 | G101: 2 | H101: 1 | I101: 1004921 | J101: 苍肥肥
F102: 10050 | G102: 2 | H102: 1 | I102: 1005021 | J102: 金肥肥
F103: 10051 | G103: 2 | H103: 1 | I103: 1005121 | J103: 阳魔
F104: 10052 | G104: 2 | H104: 1 | I104: 1005221 | J104: 阴魔

Sheet 汇总
A1: 技能id | B1: 技能名称 | C1: 技能描述 | D1: 装备id | E1: 装备名称 | F1: 装备id | G1: 装备名称 | H1: 装备id | I1: 装备名称 | J1: 装备id | K1: 装备名称 | L1: 装备id | M1: 装备名称 | N1: 装备id | O1: 装备名称
A2: 210001 | B2: 强击 | C2: 造成伤害时，额外增加100点伤害。 | D2: 52018 | E2: 轻灵法杖 | F2: 52038 | G2: 轻灵之刺 | H2: 52058 | I2: 轻灵矛 | J2: 52078 | K2: 轻灵长刀 | L2: 52098 | M2: 轻灵法杖
A3: 210002 | B3: 愈合 | C3: 进入战斗后，每1秒回复20生命。 | D3: 52019 | E3: 先知法杖 | F3: 52039 | G3: 先知之刺 | H3: 52059 | I3: 先知矛 | J3: 52079 | K3: 先知长刀 | L3: 52099 | M3: 先知法杖
A4: 210003 | B4: 嗜血 | C4: 造成伤害时，将伤害的2%转化为自身生命。 | D4: 52020 | E4: 杀戮法杖 | F4: 52040 | G4: 杀戮之刺 | H4: 52060 | I4: 杀戮矛 | J4: 52080 | K4: 杀戮长刀 | L4: 52100 | M4: 杀戮法杖
A5: 310001 | B5: 破甲 | C5: 发动技能后，减少目标50点护甲，持续整场战斗，最多可减少400点。 | D5: 53011 | E5: 逐光法杖 | F5: 53025 | G5: 逐光之刺 | H5: 53039 | I5: 逐光大矛 | J5: 53053 | K5: 逐光长剑 | L5: 53067 | M5: 逐光法杖
A6: 310002 | B6: 骄击 | C6: 造成的伤害暴击时，有10%的概率造成200%的暴击伤害。 | D6: 53012 | E6: 轻尘法杖 | F6: 53026 | G6: 轻尘之刺 | H6: 53040 | I6: 轻尘大矛 | J6: 53054 | K6: 轻尘长剑 | L6: 53068 | M6: 轻尘法杖
A7: 310003 | B7: 强击 | C7: 造成伤害时，额外增加200点伤害。 | D7: 53013 | E7: 洞察法杖 | F7: 53027 | G7: 洞察之刺 | H7: 53041 | I7: 洞察大矛 | J7: 53055 | K7: 洞察长剑 | L7: 53069 | M7: 洞察法杖
A8: 310004 | B8: 愈合 | C8: 进入战斗后，每1秒回复35生命。 | D8: 53014 | E8: 屠戮法杖 | F8: 53028 | G8: 屠戮之刺 | H8: 53042 | I8: 屠戮大矛 | J8: 53056 | K8: 屠戮长剑 | L8: 53070 | M8: 屠戮法杖
A9: 411001 | B9: 化神 | C9: 发动技能时，40%的概率将魔抗的20%视作额外攻击。 | D9: 54008 | E9: 踏江短杖
A10: 411002 | B10: 湮灭 | C10: 造成的伤害暴击后，60%的概率施加10%攻击的持续魔法伤害，持续3秒。 | D10: 54009 | E10: 悬河短杖
A11: 411003 | B11: 伏击 | C11: 发动技能后，20%的概率对敌方随机1名施加50%攻击的魔法伤害。 | D11: 54010 | E11: 镜湖短杖
A12: 411004 | B12: 破锋 | C12: 战斗中，增加10%攻击力。 | D12: 54011 | E12: 止玄短杖
A13: 411005 | B13: 天御 | C13: 战斗中，增加10%伤害减免。 | D13: 54012 | E13: 无锋短杖
A14: 411006 | B14: 斩神 | C14: 战斗中，增加5%暴击率。 | D14: 54013 | E14: 千钧短杖
A15: 411007 | B15: 精术 | C15: 战斗中，增加5%效果命中。 | D15: 54014 | E15: 撼岳短杖
A16: 412001 | B16: 战意昂扬 | C16: 进入战斗10秒后，免疫控制效果，持续10秒。 | D16: 54022 | E16: 踏江长剑
A17: 412002 | B17: 战甲 | C17: 发动技能时，40%的概率将护甲的20%视作额外攻击。 | D17: 54023 | E17: 悬河之刺
A18: 412003 | B18: 无畏 | C18: 对血量高于60%的敌人伤害提高30%。 | D18: 54024 | E18: 镜湖之刺
A19: 412004 | B19: 破空 | C19: 战斗中，增加20%暴击伤害。 | D19: 54025 | E19: 止玄之刺
A20: 412005 | B20: 迅雷 | C20: 战斗中，增加634点速度。 | D20: 54026 | E20: 无锋之刺
A21: 412006 | B21: 斩神 | C21: 战斗中，增加5%暴击率。 | D21: 54027 | E21: 千钧之刺
A22: 412007 | B22: 破锋 | C22: 战斗中，增加10%攻击力。 | D22: 54028 | E22: 撼岳之刺
A23: 413001 | B23: 神甲 | C23: 发动技能后，增加自身护甲200点,持续8秒。 | D23: 54036 | E23: 踏江战戟
A24: 413002 | B24: 反击 | C24: 受击后，有10%的概率对随机1人造成护甲的20%的真实伤害。 | D24: 54037 | E24: 悬河战戟
A25: 413003 | B25: 向死而生 | C25: 受击后,10%的概率，回复自身最大生命值6%的血量。 | D25: 54038 | E25: 镜湖战戟
A26: 413004 | B26: 精术 | C26: 战斗中，增加5%效果命中。 | D26: 54039 | E26: 止玄战矛
A27: 413005 | B27: 回春 | C27: 战斗中，增加10%受到的治疗效果。 | D27: 54040 | E27: 无锋战矛
A28: 413006 | B28: 圣体 | C28: 战斗中，增加10%最大生命值。 | D28: 54041 | E28: 千钧战矛
A29: 413007 | B29: 天御 | C29: 战斗中，增加10%伤害减免。 | D29: 54042 | E29: 撼岳战矛
A30: 414001 | B30: 混乱 | C30: 发动技能后，有20%的概率眩晕敌方其中1人，持续3秒。 | D30: 54050 | E30: 踏江之刃
A31: 414002 | B31: 命运 | C31: 控制效果命中后，50%的概率追加30%的魔法伤害。 | D31: 54051 | E31: 悬河之刃
A32: 414003 | B32: 擅攻 | C32: 造成的持续伤害时间延长1秒。 | D32: 54052 | E32: 镜湖之刃
A33: 414004 | B33: 精术 | C33: 战斗中，增加5%效果命中。 | D33: 54053 | E33: 止玄之刃
A34: 414005 | B34: 迅雷 | C34: 战斗中，增加634点速度。 | D34: 54054 | E34: 无锋之刃
A35: 414006 | B35: 天伤 | C35: 战斗中，增加10%伤害。 | D35: 54055 | E35: 千钧之刃
A36: 414007 | B36: 破锋 | C36: 战斗中，增加10%攻击力。 | D36: 54056 | E36: 撼岳之刃
A37: 415001 | B37: 不倒 | C37: 受击后,40%的概率，回复自身40%攻击的血量。 | D37: 54064 | E37: 踏江法杖
A38: 415002 | B38: 风驰电掣 | C38: 发动技能后，增加自身200点速度,持续5秒。 | D38: 54065 | E38: 悬河秘录
A39: 415003 | B39: 妙手 | C39: 发动技能后，30%的概率回复我方攻击最高的1人的10%攻击的血量，持续5秒。 | D39: 54066 | E39: 镜湖秘录
A40: 415004 | B40: 破锋 | C40: 战斗中，增加10%攻击力。 | D40: 54067 | E40: 止玄秘录
A41: 415005 | B41: 神愈 | C41: 战斗中，增加10%治疗量。 | D41: 54068 | E41: 无锋秘录
A42: 415006 | B42: 斩神 | C42: 战斗中，增加5%暴击率。 | D42: 54069 | E42: 千钧秘录
A43: 415007 | B43: 迅雷 | C43: 战斗中，增加634点速度。 | D43: 54070 | E43: 撼岳秘录
A44: 420001 | B44: 不倒 | C44: 受击后，40%的概率回复自身30%攻击的血量。 | D44: 54077 | E44: 洞察战甲
A45: 420002 | B45: 御甲 | C45: 受到物理攻击时，40%的概率将攻击的20%视作额外护甲。 | D45: 54078 | E45: 屠戮战甲
A46: 420003 | B46: 神助 | C46: 受击时，有20%的概率抵消20%攻击力的伤害。 | D46: 54072 | E46: 乘风战甲
A47: 420004 | B47: 舍生取义 | C47: 死亡时，立即回复己方全体40%攻击力的血量。 | D47: 54073 | E47: 光羽战甲
A48: 420005 | B48: 针锋相对 | C48: 被玄策造成伤害时，回复500生命。 | D48: 54074 | E48: 破空战甲
A49: 420006 | B49: 愈合 | C49: 进入战斗后，每1秒回复200生命。 | D49: 54079 | E49: 妖王战甲
A50: 420007 | B50: 战神 | C50: 每1秒，增加5%护甲和魔抗，最高叠加10层。 | D50: 54081 | E50: 天启战甲
A51: 520010 | B51: 天伤 | C51: 战斗中，增加20%伤害。 | D51: 54075 | E51: 逐光战甲
A52: 520011 | B52: 圣体 | C52: 战斗中，增加20%最大生命值。 | D52: 54080 | E52: 遗迹战甲
A53: 430001 | B53: 擅攻 | C53: 造成的持续伤害时间延长1秒。 | D53: 54089 | E53: 屠戮战盔
A54: 430002 | B54: 至圣 | C54: 自身增益效果超过3个时，技能伤害提升30%。 | D54: 54090 | E54: 妖王战盔
A55: 430003 | B55: 天伤 | C55: 战斗中，增加10%伤害。 | D55: 54091 | E55: 遗迹战盔
A56: 430004 | B56: 圣体 | C56: 战斗中，增加10%最大生命值。 | D56: 54092 | E56: 天启战盔
A57: 440001 | B57: 风驰电掣 | C57: 发动技能后，50%的概率增加自身速度500点，持续4秒。 | D57: 54101 | E57: 妖王战靴
A58: 440002 | B58: 圣体 | C58: 战斗中，增加10%最大生命值。 | D58: 54102 | E58: 遗迹战靴
A59: 440003 | B59: 圣体 | C59: 战斗中，增加10%最大生命值。 | D59: 54103 | E59: 天启战靴
A60: 511001 | B60: 狂暴 | C60: 发动技能时，50%的概率将暴击率视作额外暴击伤害。 | D60: 55014 | E60: 破锋神杖
A61: 511002 | B61: 重伤 | C61: 发动技能后，使目标受到治疗效果降低40%，持续8秒。 | D61: 55015 | E61: 寂灭神杖
A62: 511003 | B62: 伏击 | C62: 发动技能后，30%的概率对敌方随机1名施加80%攻击力的魔法伤害。 | D62: 55016 | E62: 太玄神杖
A63: 511004 | B63: 明心 | C63: 战斗中，增加10%效果抵抗。 | D63: 55010 | E63: 刹那神杖
A64: 511005 | B64: 回春 | C64: 战斗中，增加20%受到的治疗效果。 | D64: 55011 | E64: 一念神杖
A65: 511006 | B65: 圣体 | C65: 战斗中，增加20%最大生命值。 | D65: 55012 | E65: 须臾神杖
A66: 511007 | B66: 洞察 | C66: 战斗中，增加20%抗暴率。 | D66: 55013 | E66: 劫火神杖
A67: 511008 | B67: 破锋 | C67: 战斗中，增加20%攻击力。 | D67: 55017 | E67: 离恨神杖
A68: 511009 | B68: 天御 | C68: 战斗中，增加20%伤害减免。 | D68: 55018 | E68: 无始神杖
A69: 511010 | B69: 斩神 | C69: 战斗中，增加10%暴击率。 | D69: 55019 | E69: 归凡神杖
A70: 511011 | B70: 精术 | C70: 战斗中，增加10%效果命中。 | D70: 55020 | E70: 道衍神杖
A71: 512001 | B71: 死战 | C71: 血量低于30%时，触发控制免疫，持续10秒。每场战斗只能触发1次。 | D71: 55034 | E71: 破锋神刺
A72: 512002 | B72: 战甲 | C72: 发动技能时，60%的概率将护甲的30%视作额外攻击。 | D72: 55035 | E72: 寂灭神刺
A73: 512003 | B73: 追击 | C73: 对血量低于30%的敌人伤害提高35%。 | D73: 55036 | E73: 太玄神刺
A74: 512004 | B74: 明心 | C74: 战斗中，增加10%效果抵抗。 | D74: 55030 | E74: 刹那神刺
A75: 512005 | B75: 回春 | C75: 战斗中，增加20%受到的治疗效果。 | D75: 55031 | E75: 一念神刺
A76: 512006 | B76: 天伤 | C76: 战斗中，增加20%伤害。 | D76: 55032 | E76: 须臾神刺
A77: 512007 | B77: 圣体 | C77: 战斗中，增加20%最大生命值。 | D77: 55033 | E77: 劫火神刺
A78: 512008 | B78: 破空 | C78: 战斗中，增加30%暴击伤害。 | D78: 55037 | E78: 离恨神刺
A79: 512009 | B79: 迅雷 | C79: 战斗中，增加1056点速度。 | D79: 55038 | E79: 无始神刺
A80: 512010 | B80: 斩神 | C80: 战斗中，增加10%暴击率。 | D80: 55039 | E80: 归凡神刺
A81: 512011 | B81: 破锋 | C81: 战斗中，增加20%攻击力。 | D81: 55040 | E81: 道衍神刺
A82: 513001 | B82: 战甲 | C82: 发动技能时，50%的概率将护甲的40%视作额外攻击。 | D82: 55054 | E82: 破锋神戟
A83: 513002 | B83: 反击 | C83: 受击后，有60%的概率对随机1人造成40%护甲值的真实伤害。 | D83: 55055 | E83: 寂灭神戟
A84: 513003 | B84: 善战 | C84: 发动技能时，最大生命值的1%视作额外攻击力。 | D84: 55056 | E84: 太玄神戟
A85: 513004 | B85: 神甲 | C85: 战斗中，增加20%护甲。 | D85: 55050 | E85: 刹那神矛
A86: 513005 | B86: 御魔 | C86: 战斗中，增加20%魔抗。 | D86: 55051 | E86: 一念神矛
A87: 513006 | B87: 圣体 | C87: 战斗中，增加20%最大生命值。 | D87: 55052 | E87: 须臾神矛
A88: 513007 | B88: 洞察 | C88: 战斗中，增加20%抗暴率。 | D88: 55053 | E88: 劫火神戟
A89: 513008 | B89: 精术 | C89: 战斗中，增加10%效果命中。 | D89: 55057 | E89: 离恨神戟
A90: 513009 | B90: 回春 | C90: 战斗中，增加20%受到的治疗效果。 | D90: 55058 | E90: 无始神戟
A91: 513010 | B91: 圣体 | C91: 战斗中，增加20%最大生命值。 | D91: 55059 | E91: 归凡神戟
A92: 513011 | B92: 天御 | C92: 战斗中，增加20%伤害减免。 | D92: 55060 | E92: 道衍神戟
A93: 514001 | B93: 混乱 | C93: 发动技能后，有20%的概率眩晕敌方其中1人，持续3秒。 | D93: 55074 | E93: 破锋古剑
A94: 514002 | B94: 命运 | C94: 控制效果命中后，50%的概率对全体造成30%的魔法伤害。 | D94: 55075 | E94: 寂灭古剑
A95: 514003 | B95: 擅攻 | C95: 造成的持续伤害时间延长4秒。 | D95: 55076 | E95: 太玄古剑
A96: 514004 | B96: 明心 | C96: 战斗中，增加10%效果抵抗。 | D96: 55070 | E96: 刹那古剑
A97: 514005 | B97: 回春 | C97: 战斗中，增加20%受到的治疗效果。 | D97: 55071 | E97: 一念古剑
A98: 514006 | B98: 天御 | C98: 战斗中，增加20%伤害减免。 | D98: 55072 | E98: 须臾古剑
A99: 514007 | B99: 圣体 | C99: 战斗中，增加20%最大生命值。 | D99: 55073 | E99: 劫火古剑
A100: 514008 | B100: 精术 | C100: 战斗中，增加10%效果命中。 | D100: 55077 | E100: 离恨古剑
A101: 514009 | B101: 迅雷 | C101: 战斗中，增加1056点速度。 | D101: 55078 | E101: 无始古剑
A102: 514010 | B102: 天伤 | C102: 战斗中，增加20%伤害。 | D102: 55079 | E102: 归凡古剑
A103: 514011 | B103: 破锋 | C103: 战斗中，增加20%攻击力。 | D103: 55080 | E103: 道衍古剑
A104: 515001 | B104: 狂怒 | C104: 发动技能时，50%的概率将最大生命值的5%视作额外攻击力。 | D104: 55094 | E104: 破锋宝录
A105: 515002 | B105: 极速 | C105: 发动技能后，80%的概率提升我方随机角色最大生命值1%的速度，持续5秒。 | D105: 55095 | E105: 寂灭宝录
A106: 515003 | B106: 祈祷 | C106: 使用回复技能时，30%的概率提高恢复效果30%。 | D106: 55096 | E106: 太玄宝录
A107: 515004 | B107: 明心 | C107: 战斗中，增加10%效果抵抗。 | D107: 55090 | E107: 刹那宝录
A108: 515005 | B108: 精术 | C108: 战斗中，增加10%效果命中。 | D108: 55091 | E108: 一念宝录
A109: 515006 | B109: 圣体 | C109: 战斗中，增加20%最大生命值。 | D109: 55092 | E109: 须臾宝录
A110: 515007 | B110: 洞察 | C110: 战斗中，增加20%抗暴率。 | D110: 55093 | E110: 劫火宝录
A111: 515008 | B111: 破锋 | C111: 战斗中，增加20%攻击力。 | D111: 55097 | E111: 离恨宝录
A112: 515009 | B112: 神愈 | C112: 战斗中，增加20%治疗量。 | D112: 55098 | E112: 无始宝录
A113: 515010 | B113: 斩神 | C113: 战斗中，增加10%暴击率。 | D113: 55099 | E113: 归凡宝录
A114: 515011 | B114: 迅雷 | C114: 战斗中，增加1056点速度。 | D114: 55100 | E114: 道衍宝录
A115: 520001 | B115: 不倒 | C115: 受击后,60%的概率回复自身30%攻击力的血量。 | D115: 55102 | E115: 神凰羽衣
A116: 520002 | B116: 御甲 | C116: 受到物理攻击时，60%的概率将攻击力的30%视作额外护甲。 | D116: 55103 | E116: 饕餮战衣
A117: 520003 | B117: 神助 | C117: 受击时，有30%的概率抵消30%攻击力的攻击。 | D117: 55109 | E117: 轮回羽衣
A118: 520004 | B118: 舍生取义 | C118: 死亡时，立即回复己方全体60%攻击力的血量。 | D118: 55110 | E118: 盘龙战甲
A119: 520005 | B119: 针锋相对 | C119: 被玄策造成伤害时，回复1500生命。 | D119: 55111 | E119: 玄冥战甲
A120: 520006 | B120: 愈合 | C120: 进入战斗后，每1秒回复500生命。 | D120: 55104 | E120: 朱雀神甲
A121: 520007 | B121: 战神 | C121: 每1秒，增加5%护甲和魔抗，最高叠加10层。 | D121: 55115 | E121: 九霄华裳
A122: 520008 | B122: 明心 | C122: 战斗中，增加5%效果抵抗。 | D122: 55105 | E122: 微澜羽衣
A123: 520009 | B123: 回春 | C123: 战斗中，增加20%受到的治疗效果。 | D123: 55106 | E123: 无垠罩衣
A124: 520010 | B124: 天伤 | C124: 战斗中，增加20%伤害。 | D124: 55112 | E124: 千霄战甲
A125: 520011 | B125: 圣体 | C125: 战斗中，增加20%最大生命值。 | D125: 55113 | E125: 麒麟战甲
A126: 530001 | B126: 复苏 | C126: 受到治疗效果提高20%。 | D126: 55121 | E126: 若水罩帽
A127: 530002 | B127: 撕裂 | C127: 造成的持续伤害时间延长2秒。 | D127: 55122 | E127: 阎罗冠冕
A128: 530003 | B128: 至圣 | C128: 自身增益效果超过3个时，技能伤害提升50%。 | D128: 55123 | E128: 神霄战盔
A129: 530004 | B129: 低语 | C129: 免疫沉默状态。 | D129: 55128 | E129: 麒麟战盔
A130: 530005 | B130: 明神 | C130: 免疫眩晕状态。 | D130: 55129 | E130: 应龙战盔
A131: 530006 | B131: 金刚不坏 | C131: 免疫所有持续伤害状态。 | D131: 55130 | E131: 九霄华冠
A132: 530007 | B132: 明心 | C132: 战斗中，增加5%效果抵抗。 | D132: 55124 | E132: 涅槃羽冠
A133: 530008 | B133: 回春 | C133: 战斗中，增加20%受到的治疗效果。 | D133: 55125 | E133: 盘龙战盔
A134: 530009 | B134: 天伤 | C134: 战斗中，增加20%伤害。 | D134: 55126 | E134: 玄冥战盔
A135: 530010 | B135: 圣体 | C135: 战斗中，增加20%最大生命值。 | D135: 55127 | E135: 千霄战盔
A136: 540001 | B136: 风驰电掣 | C136: 发动技能后，80%的概率增加自身速度500点，持续5秒。 | D136: 55142 | E136: 千霄战靴
A137: 540002 | B137: 明心 | C137: 战斗中，增加5%效果抵抗。 | D137: 55137 | E137: 深渊战靴
A138: 540003 | B138: 回春 | C138: 战斗中，增加20%受到的治疗效果。 | D138: 55138 | E138: 九幽战靴
A139: 540004 | B139: 天伤 | C139: 战斗中，增加20%伤害。 | D139: 55139 | E139: 往生羽鞋
A140: 540005 | B140: 圣体 | C140: 战斗中，增加20%最大生命值。 | D140: 55140 | E140: 盘龙战靴
A141: 540006 | B141: 圣体 | C141: 战斗中，增加20%最大生命值。 | D141: 55141 | E141: 玄冥战靴
A142: 540007 | B142: 圣体 | C142: 战斗中，增加20%最大生命值。 | D142: 55143 | E142: 麒麟战靴
A143: 540008 | B143: 圣体 | C143: 战斗中，增加20%最大生命值。 | D143: 55144 | E143: 应龙战靴
A144: 540009 | B144: 圣体 | C144: 战斗中，增加20%最大生命值。 | D144: 55145 | E144: 九霄华履
